Workbook

Sheet Maquette
A2: VARIABLES A SAISIR
A3: Année | B3: 2024
A4: Budget | B4: initial
A5: N° budget

Sheet récap
B1: EPSCP - synthèse des documents budgétaires
B4: Intitulé du tableau | C4: Périmètre | D4: Soumission au CA | E4: Contrôles entre tableaux
A6: 1 | B6: Tableau des emplois | C6: Budget de l'établissement | D6: Pour vote | E6: =IF('1-tab emplois_ETAB'!F20<>"","Problème dotation < emplois ETAB","OK") -> OK
A7: 2 | B7: Tableau des autorisations budgétaires | C7: Fondation universitaire | D7: Pour vote. Pour les SIE, le vote relève du CA de l'établissement de rattachement | E7: =IF((IF(AND('2-tab_aut_budg_Fondation'!E32="",'2-tab_aut_budg_Fondation'!F32="",'2-tab_aut_budg_Fondation'!E33="",'2-tab_aut_budg_Fondation'!F33="",'2-tab_aut_budg_Fondation'!E34="",'2-tab_aut_budg_Fondation'!F34="",'2-tab_aut_budg_Fondation'!N32="",'2-tab_aut_budg_Fondation'!O32="",'2-tab_aut_budg_Fondation'!N33="",'2-tab_aut_budg_Fondation'!O33="",'2-tab_aut_budg_Fondation'!N34="",'2-tab_aut_budg_Fondation'!O34="",'2-tab_aut_budg_Fondation'!N35="",'2-tab_aut_budg_Fondation'!O35="",'2-tab_aut_budg_Fondation'!L32=""),"","Problème(s) avec tableau 3 ETAB")&" "&IF('2-tab_aut_budg_Fondation'!L33="","","Problème(s) avec tableau 4")&" "&IF(AND('2-tab_aut_budg_Fondation'!G32="",'2-tab_aut_budg_Fondation'!G33="",'2-tab_aut_budg_Fondation'!G34="",'2-tab_aut_budg_Fondation'!G35="",'2-tab_aut_budg_Fondation'!H32="",'2-tab_aut_budg_Fondation'!H33="",'2-tab_aut_budg_Fondation'!H34="",'2-tab_aut_budg_Fondation'!H35="",'6-tab CR_TF_Fondation'!N46=""),"","Problème(s) avec tableau 6 ETAB")&" "&IF(AND('2-tab_aut_budg_Fondation'!I32="",'2-tab_aut_budg_Fondation'!I33="",'2-tab_aut_budg_Fondation'!I34="",'2-tab_aut_budg_Fondation'!P32="",'2-tab_aut_budg_Fondation'!P33="",'2-tab_aut_budg_Fondation'!P34="",'2-tab_aut_budg_Fondation'!P35="",'2-tab_aut_budg_Fondation'!P36="",'2-tab_aut_budg_Fondation'!Q32="",'2-tab_aut_budg_Fondation'!Q33="",'2-tab_aut_budg_Fondation'!Q34=""),"","Problème(s) avec tableau 7")&" "&IF(AND('2-tab_aut_budg_Fondation'!R32="",'2-tab_aut_budg_Fondation'!R33="",'2-tab_aut_budg_Fondation'!R34=""),"","Problème(s) avec tableau 8 ETAB"))=" ","OK",(IF(AND('2-tab_aut_budg_Fondation'!E32="",'2-tab_aut_budg_Fondation'!F32="",'2-tab_aut_budg_Fondation'!E33="",'2-tab_aut_budg_Fondation'!F33="",'2-tab_aut_budg_Fondation'!E34="",'2-tab_aut_budg_Fondation'!F34="",'2-tab_aut_budg_Fondation'!N32="",'2-tab_aut_budg_Fondation'!O32="",'2-tab_aut_budg_Fondation'!N33="",'2-tab_aut_budg_Fondation'!O33="",'2-tab_aut_budg_Fondation'!N34="",'2-tab_aut_budg_Fondation'!O34="",'2-tab_aut_budg_Fondation'!N35="",'2-tab_aut_budg_Fondation'!O35="",'2-tab_aut_budg_Fondation'!L32=""),"","Problème(s) avec tableau 3 ETAB")&" "&IF('2-tab_aut_budg_Fondation'!L33="","","Problème(s) avec tableau 4")&" "&IF(AND('2-tab_aut_budg_Fondation'!G32="",'2-tab_aut_budg_Fondation'!G33="",'2-tab_aut_budg_Fondation'!G34="",'2-tab_aut_budg_Fondation'!G35="",'2-tab_aut_budg_Fondation'!H32="",'2-tab_aut_budg_Fondation'!H33="",'2-tab_aut_budg_Fondation'!H34="",'2-tab_aut_budg_Fondation'!H35="",'6-tab CR_TF_Fondation'!N46=""),"","Problème(s) avec tableau 6 ETAB")&" "&IF(AND('2-tab_aut_budg_Fondation'!I32="",'2-tab_aut_budg_Fondation'!I33="",'2-tab_aut_budg_Fondation'!I34="",'2-tab_aut_budg_Fondation'!P32="",'2-tab_aut_budg_Fondation'!P33="",'2-tab_aut_budg_Fondation'!P34="",'2-tab_aut_budg_Fondation'!P35="",'2-tab_aut_budg_Fondation'!P36="",'2-tab_aut_budg_Fondation'!Q32="",'2-tab_aut_budg_Fondation'!Q33="",'2-tab_aut_budg_Fondation'!Q34=""),"","Problème(s) avec tableau 7")&" "&IF(AND('2-tab_aut_budg_Fondation'!R32="",'2-tab_aut_budg_Fondation'!R33="",'2-tab_aut_budg_Fondation'!R34=""),"","Problème(s) avec tableau 8 ETAB"))) -> 
A8: 3 | B8: Tableau des dépenses par destination et recettes par origine | C8: Fondation universitaire | D8: Pour information | E8: =IF((IF(COUNTA(CONTROLES_TAB3_ETAB)-COUNTIF(CONTROLES_TAB3_1_ETAB,"")-COUNTIF(CONTROLES_TAB3_2_ETAB,"")-COUNTIF(CONTROLES_TAB3_3_ETAB,"")-COUNTIF(CONTROLES_TAB3_4_ETAB,"")=0,"","Problème(s) avec tableau 2 ETAB")&" "&IF(AND('3-tab_destination_origine_Fonda'!M52="",'3-tab_destination_origine_Fonda'!L30=""),"","Problème(s) avec tableau 4")&" "&IF(AND('3-tab_destination_origine_Fonda'!H54="",'3-tab_destination_origine_Fonda'!I54="",'3-tab_destination_origine_Fonda'!J54=""),"","Problème(s) avec tableau 8 ETAB"))=" ","OK",(IF(COUNTA(CONTROLES_TAB3_ETAB)-COUNTIF(CONTROLES_TAB3_1_ETAB,"")-COUNTIF(CONTROLES_TAB3_2_ETAB,"")-COUNTIF(CONTROLES_TAB3_3_ETAB,"")-COUNTIF(CONTROLES_TAB3_4_ETAB,"")=0,"","Problème(s) avec tableau 2 ETAB")&" "&IF(AND('3-tab_destination_origine_Fonda'!M52="",'3-tab_destination_origine_Fonda'!L30=""),"","Problème(s) avec tableau 4")&" "&IF(AND('3-tab_destination_origine_Fonda'!H54="",'3-tab_destination_origine_Fonda'!I54="",'3-tab_destination_origine_Fonda'!J54=""),"","Problème(s) avec tableau 8 ETAB"))) -> 
A9: 4 | B9: Tableau d'équilibre financier | C9: Fondation universitaire | D9: Pour vote | E9: OK
A10: 5 | B10: Tableau des opération pour compte de tiers | C10: Fondation universitaire | D10: Pour information | E10: =IF((IF(AND('5-tab compte de tiers_Fondation'!E25="",'5-tab compte de tiers_Fondation'!F25=""),"","Problème(s) avec tableau 4"))="","OK",(IF(AND('5-tab compte de tiers_Fondation'!E25="",'5-tab compte de tiers_Fondation'!F25=""),"","Problème(s) avec tableau 4"))) -> OK
A11: 6 | B11: Tableau de situation patrimoniale (tableau compte de résultat - tableau de financement) | C11: Fondation universitaire | D11: Pour vote | E11: OK
A12: 7 | B12: Tableau présentant le plan de trésorerie | C12: Fondation universitaire | D12: Pour information | E12: =IF((IF(AND('7-tab Plan_tréso_Fondation'!P10="",'7-tab Plan_tréso_Fondation'!P11="",'7-tab Plan_tréso_Fondation'!P12="",'7-tab Plan_tréso_Fondation'!P13="",'7-tab Plan_tréso_Fondation'!P14="",'7-tab Plan_tréso_Fondation'!P16="",'7-tab Plan_tréso_Fondation'!P17="",'7-tab Plan_tréso_Fondation'!P18="",'7-tab Plan_tréso_Fondation'!P30="",'7-tab Plan_tréso_Fondation'!P31="",'7-tab Plan_tréso_Fondation'!P33=""),"","Problème(s) avec tableau 2 ETAB")&" "&IF(AND('7-tab Plan_tréso_Fondation'!P19="",'7-tab Plan_tréso_Fondation'!P23="",'7-tab Plan_tréso_Fondation'!P39="",'7-tab Plan_tréso_Fondation'!P43="",'7-tab Plan_tréso_Fondation'!P48=""),"","Problème(s) avec tableau 4")&" "&IF('7-tab Plan_tréso_Fondation'!P49="","","Problème avec tableau 6 ETAB")&" "&IF(AND('7-tab Plan_tréso_Fondation'!Q16="",'7-tab Plan_tréso_Fondation'!Q17="",'7-tab Plan_tréso_Fondation'!Q18="",'7-tab Plan_tréso_Fondation'!Q35="",'7-tab Plan_tréso_Fondation'!Q36="",'7-tab Plan_tréso_Fondation'!Q38=""),"","Problème(s) avec tableau 8 ETAB"))=" ","OK",(IF(AND('7-tab Plan_tréso_Fondation'!P10="",'7-tab Plan_tréso_Fondation'!P11="",'7-tab Plan_tréso_Fondation'!P12="",'7-tab Plan_tréso_Fondation'!P13="",'7-tab Plan_tréso_Fondation'!P14="",'7-tab Plan_tréso_Fondation'!P16="",'7-tab Plan_tréso_Fondation'!P17="",'7-tab Plan_tréso_Fondation'!P18="",'7-tab Plan_tréso_Fondation'!P30="",'7-tab Plan_tréso_Fondation'!P31="",'7-tab Plan_tréso_Fondation'!P33=""),"","Problème(s) avec tableau 2 ETAB")&" "&IF(AND('7-tab Plan_tréso_Fondation'!P19="",'7-tab Plan_tréso_Fondation'!P23="",'7-tab Plan_tréso_Fondation'!P39="",'7-tab Plan_tréso_Fondation'!P43="",'7-tab Plan_tréso_Fondation'!P48=""),"","Problème(s) avec tableau 4")&" "&IF('7-tab Plan_tréso_Fondation'!P49="","","Problème avec tableau 6 ETAB")&" "&IF(AND('7-tab Plan_tréso_Fondation'!Q16="",'7-tab Plan_tréso_Fondation'!Q17="",'7-tab Plan_tréso_Fondation'!Q18="",'7-tab Plan_tréso_Fondation'!Q35="",'7-tab Plan_tréso_Fondation'!Q36="",'7-tab Plan_tréso_Fondation'!Q38=""),"","Problème(s) avec tableau 8 ETAB"))) -> 
A13: Annexe 5 | B13: Tableau de synthèse | C13: Fondation universitaire | E13: OK

Sheet TS MESR
A1: UBS | C1: =IF(Maquette!B4="initial",CONCATENATE("Budget ",Maquette!B4," ",Maquette!B3),CONCATENATE("Budget rectificatif ",Maquette!B5," ",Maquette!B3)) -> Budget initial 2024
C2: budget agrégé | E2: budget établissement
C3: hors SIE | E3: avec SIE
A5: T6 | B5: résultat net comptable | C5: ='6-tab CR_TF_Fondation'!F14-'6-tab CR_TF_Fondation'!L14 -> -40337 | E5: ='6-tab CR_TF_Fondation'!F14-'6-tab CR_TF_Fondation'!L14 -> -40337 | G5: onglet "6-tab CR_TF_ETAB" : cellule F 14 (si perte) ou cellule L 14 (si bénéfice)
A6: T6 | B6: CAF | C6: ='6-tab CR_TF_Fondation'!F28 -> -30646 | E6: ='6-tab CR_TF_Fondation'!F28 -> -30646 | G6: onglet "6-tab CR_TF_ETAB" : cellule F 28
A7: T6 | B7: Variation FDR | C7: ='6-tab CR_TF_Fondation'!L46 -> -44646 | E7: ='6-tab CR_TF_Fondation'!L46 -> -44646 | G7: onglet "6-tab CR_TF_ETAB" : cellule L 46
A8: T6 | B8: FDR | C8: ='6-tab CR_TF_Fondation'!L49 -> 311301.62 | E8: ='6-tab CR_TF_Fondation'!L49 -> 311301.62 | G8: onglet "6-tab CR_TF_ETAB" : cellule L 49
A10: T4 | B10: variation de la trésorerie | C10: ='6-tab CR_TF_Fondation'!L48 -> -110676 | E10: ='6-tab CR_TF_Fondation'!L48 -> -110676 | G10: onglet "6-tab CR_TF_ETAB" : cellule L 48
A11: T6 | B11: trésorerie | C11: ='6-tab CR_TF_Fondation'!L51 -> 140926.54 | E11: ='6-tab CR_TF_Fondation'!L51 -> 140926.54 | G11: onglet "6-tab CR_TF_ETAB" : cellule L 51
A13: T6 | B13: produits | C13: ='6-tab CR_TF_Fondation'!L13 -> 470280 | E13: ='6-tab CR_TF_Fondation'!L13 -> 470280 | G13: onglet "6-tab CR_TF_ETAB" : cellule L 13
A14: T6 | B14: produits encaissables | C14: ='6-tab CR_TF_Fondation'!L13+'6-tab CR_TF_Fondation'!F24 -> 465000 | E14: ='6-tab CR_TF_Fondation'!L13+'6-tab CR_TF_Fondation'!F24 -> 465000 | G14: onglet "6-tab CR_TF_ETAB" : cellule L 13 + cellule F 24
A15: T2 | B15: SCSP | C15: ='2-tab_aut_budg_Fondation'!R12 -> 0 | E15: ='2-tab_aut_budg_Fondation'!R12 -> 0 | G15: onglet "2-tab_aut_budg_ETAB" cellule R 12
A17: T6 | B17: charges de fonctionnement décaissables | C17: ='6-tab CR_TF_Fondation'!F13-'6-tab CR_TF_Fondation'!F23 -> 495646 | E17: ='6-tab CR_TF_Fondation'!F13-'6-tab CR_TF_Fondation'!F23 -> 495646 | G17: onglet "6-tab CR_TF_ETAB" : cellule F 13 - cellule F 23
A18: T6 | B18: charges de personnels | C18: ='6-tab CR_TF_Fondation'!F9 -> 259871 | E18: ='6-tab CR_TF_Fondation'!F9 -> 259871 | G18: onglet "6-tab CR_TF_ETAB" : cellule F 9
A20: T6 | B20: emplois hors IAF | C20: ='6-tab CR_TF_Fondation'!F36 -> 14000 | E20: ='6-tab CR_TF_Fondation'!F36 -> 14000 | G20: onglet "6-tab CR_TF_ETAB" : cellule F 36 (attention fusion cellules F36/F37/F38)
A22: T2 | B22: solde budgétaire | C22: ='2-tab_aut_budg_AGR'!L30-'2-tab_aut_budg_AGR'!R30 -> 0 | E22: ='2-tab_aut_budg_Fondation'!L30-'2-tab_aut_budg_Fondation'!R30 -> -110676 | G22: onglet "2-tab_aut_budg_ETAB" cellule R 30 (si déficit) ou cellule L 30 (si excédent)
A23: T2 | B23: recettes (encaissements) | C23: ='2-tab_aut_budg_AGR'!R28 -> 0 | E23: ='2-tab_aut_budg_Fondation'!R28 -> 399000 | G23: onglet "2-tab_aut_budg_ETAB" cellule R 28
A24: T2 | B24: autorisations d'engagements | C24: ='2-tab_aut_budg_AGR'!K28 -> 0 | E24: ='2-tab_aut_budg_Fondation'!K28 -> 519676 | G24: onglet "2-tab_aut_budg_ETAB" cellule K 28
A26: T9 | B26: restes à payer sur AE consommées en fin d'année n (CP) | E26: =#REF! ->  | G26: onglet "9-tab op_pluriannuelles_ETAB" cellule O 27
A27: T9 | B27: restes à encaisser (année n+1 et suivantes) | E27: =#REF! ->  | G27: onglet "9-tab op_pluriannuelles_ETAB" cellule H 54
A29: synthèse | B29: niveau final des restes à payer | E29: ='Annexe Synthèse_Fondation'!H52 -> 10000 | G29: onglet "Annexe Synthèse_ETAB" cellule H 52
A30: synthèse | B30: niveau final de la trésorerie fléchée | E30: ='Annexe Synthèse_Fondation'!H59 -> 0 | G30: onglet "Annexe Synthèse_ETAB" cellule H 59

Sheet Indicateurs
A1: UBS | C1: =IF(Maquette!B4="initial",CONCATENATE("BI ",Maquette!B3),CONCATENATE("Budget rectificatif ",Maquette!B3," ",Maquette!B5)) -> BI 2024
A3: plafond Etat | C3: ='1-tab emplois_ETAB'!F19 -> 843 | E3: tableau 1 : ligne 19
A4: plafond ressources propres | C4: ='1-tab emplois_ETAB'!K19 -> 290 | E4: tableau 1 : ligne 19
A5: Total ETPT OREMS | C5: =C3+C4 -> 1133 | E5: tableau 1 : ligne 19
A7: Plafond Etat notifié MESR | C7: ='1-tab emplois_ETAB'!F19 -> 843
A9: dépenses de personnels (64 + 631-632-633) | C9: ='6-tab CR_TF_Fondation'!F9 -> 259871 | E9: onglet "6-tab CR_TF_ETAB" : cellule F9
A10: MS OREMS
A12: dont rémunérations principales (64111)
A14: dont cours complémentaires OREMS
A15: poids CC/MS OREMS
A17: masse salariale notifiée MESR
A19: masse salariale rémunérée hors SCSP
A20: % masse salariale rémunérée hors SCSP
A22: dépenses totales section de fct | C22: ='6-tab CR_TF_Fondation'!F13 -> 510617 | E22: onglet "6-tab CR_TF_ETAB" : cellule F 13
A23: % masse salariale sur total classe 6 | C23: =IF(C22=0,0,C9/C22) -> 0.5089352685 | E23: = ligne 9 / ligne 22
A25: dépenses de fonctionnement (section de fct - MS) | C25: =C22-C9 -> 250746 | E25: = ligne 22 - ligne 9
A26: % fonctionnement sur total classe 6 | C26: =IF(C22=0,0,C25/C22) -> 0.4910647315 | E26: = ligne 25 / ligne 22
A27: vérif MS + fct | C27: =C23+C26 -> 1 | E27: = ligne 23 + ligne 26
A29: dépenses décaissables section de fct | C29: ='6-tab CR_TF_Fondation'!F13-'6-tab CR_TF_Fondation'!F23 -> 495646 | E29: onglet "6-tab CR_TF_ETAB" : cellule F 13 - cellule F 23 | G29: =C29/360 -> 1376.794444
A30: % masse salariale sur dépenses décaissables | C30: =IF(C29=0,0,C9/C29) -> 0.5243076712 | E30: = ligne 9 / ligne22
A32: dépenses d'investissements | C32: ='6-tab CR_TF_Fondation'!F36 -> 14000 | E32: onglet "6-tab CR_TF_ETAB" : cellule F36 (attention fusion cellules F36/F37/F38)
A34: SCSP brute notifiée | E34: sans objet
A35: le
A36: mise en réserve
A37: % age de la mise en réserve
A38: mobilisation fonds de roulement
A39: SCSP nette
A40: dont masse salariale
A41: %age masse salariale
A42: dont fonctionnement
A43: %age fonctionnement
A45: Poids de la SCSP sur les recettes encaissables | C45: =IF(C49=0,0,C39/C49) -> 0
A46: moyenne nationale 2013 : 83,6% rapport IGF IGAENR mars 2015
A47: recettes totales | C47: ='6-tab CR_TF_Fondation'!L13 -> 470280 | E47: onglet "6-tab CR_TF_ETAB" : cellule L 13
A49: recettes encaissables | C49: ='6-tab CR_TF_Fondation'!L13+'6-tab CR_TF_Fondation'!F24 -> 465000 | E49: onglet "6-tab CR_TF_ETAB" : cellule L 13 + cellule F 24
A50: % masse salariale sur recettes enc. Ratio MESR 81_83% | C50: =IF(C49=0,0,C9/C49) -> 0.5588623656 | E50: =ligne 13 / ligne 54
E51: =CONCATENATE("si % inférieur à ",F51*100," %") -> si % inférieur à 80 % | F51: 0.8
A52: ressources propres (cl.7 -77 -78) | E52: =CONCATENATE("si % entre ",F51*100," et ",F52*100," %") -> si % entre 80 et 83 % | F52: 0.83
A53: % masse salariale sur ressources propres (notion CRB) | E53: =CONCATENATE("si % supérieur à ",F52*100," %") -> si % supérieur à 83 %
A55: recettes d'investissements | C55: ='6-tab CR_TF_Fondation'!L40-'6-tab CR_TF_Fondation'!L35 -> 0 | E55: onglet "6-tab CR_TF_ETAB" : cellule L 40 - cellule L 35
A56: %investissements financés par subventions | C56: =IF(C32=0,0,C55/C32) -> 0 | E56: = ligne 55 / ligne 32
A57: % invsetissements financés par la CAF | C57: =IF(C32=0,0,C66/C32) -> -2.189 | E57: = ligne 66 / ligne 32
A59: solde budgétaire (à compter de 2016) | C59: ='2-tab_aut_budg_Fondation'!L30-'2-tab_aut_budg_Fondation'!R30 -> -110676 | E59: onglet "2-tab_aut_budg_ETAB" : cellule R 30 (si déficit) ou cellule L 30 (si excédent)
A61: résultat net comptable | C61: ='6-tab CR_TF_Fondation'!F14-'6-tab CR_TF_Fondation'!L14 -> -40337 | E61: onglet "6-tab CR_TF_ETAB" : cellule L 14 (si perte) ou cellule F 14 (si bénéfice)
A63: variation FDR | C63: ='6-tab CR_TF_Fondation'!L46 -> -44646 | E63: onglet "6-tab CR_TF_ETAB" : cellule L 46
A64: vérif
A66: CAF/IAF | C66: ='6-tab CR_TF_Fondation'!F28 -> -30646 | E66: onglet "6-tab CR_TF_ETAB" : cellule F 28
A68: EBE
A70: FDR | C70: ='6-tab CR_TF_Fondation'!L49 -> 311301.62 | E70: onglet "6-tab CR_TF_ETAB" : cellule L 49
A71: FDR en jours de dépenses décaissables | C71: =IF(C29=0,0,C70*360/C29) -> 226.1060983 | E71: =CONCATENATE("si inférieur à ",F71," jours") -> si inférieur à 20 jours | F71: 20
E72: =CONCATENATE("si supérieur à ",F72," jours") -> si supérieur à 30 jours | F72: 30
A73: TRESORERIE | C73: ='6-tab CR_TF_Fondation'!L51 -> 140926.54 | E73: onglet "6-tab CR_TF_ETAB" : cellule L 51
A74: TRESORERIE en jours de dépenses décaissables | C74: =IF(C29=0,0,C73*360/C29) -> 102.3584461 | E74: =CONCATENATE("si inférieur à ",F74," jours") -> si inférieur à 30 jours | F74: 30
E75: =CONCATENATE("si supérieur à ",F75," jours") -> si supérieur à 31 jours | F75: 31
A76: BFR | C76: =C70-C73 -> 170375.08 | E76: = ligne 70 - ligne 73

Sheet 1-tab emplois_ETAB
B1: Tableau 1 - Université de Bretagne Sud (0561718N) : Etablissement principal + Fondation
B2: ="Tableau des emplois présenté par l’établissement à l’appui du budget "&Maquette!B4&" "&Maquette!B5&" "&Maquette!B3 -> Tableau des emplois présenté par l’établissement à l’appui du budget initial 2024
B4: POUR VOTE DE L'ORGANE DÉLIBÉRANT
G5: (A) | L5: (B) | P5: ( C ) = (A) + (B)
F6: Emplois sous plafond Etat * | K6: Emplois financés hors SCSP | P6: Global
B7: Catégories d'emplois | C7: Nature des emplois | F7: En ETPT | K7: En ETPT
B8: Enseignants, enseignants-chercheurs, chercheurs | C8: Permanents | D8: Titulaires | F8: 383 | N8: 0 | P8: =F8 -> 383
D9: CDI | F9: 7.5 | K9: 9 | P9: =F9+K9 -> 16.5
C10: Non permanents | D10: CDD | F10: 77.5 | K10: 92 | P10: =F10+K10 -> 169.5
B11: S/total EC | F11: =SUM(F8:I10) -> 468 | K11: =SUM(K9:N10) -> 101 | P11: =SUM(P8:P10) -> 569
B13: Elèves fonctionnaires stagiaires des écoles nationales supérieures (ENS) | P13: =F13 -> 0
B15: BIATSS (personnels de bibliothèques, ingénieurs, administratifs, techniques et de service) | C15: Permanents | D15: Titulaires | F15: 287 | P15: =F15 -> 287
D16: CDI | F16: 26 | K16: 19 | P16: =K16+F16 -> 45
C17: Non permanents | D17: CDD | F17: 62 | K17: 170 | P17: =K17+F17 -> 232
B18: S/total Biatss | F18: =SUM(F15:I17) -> 375 | K18: =SUM(K16:N17) -> 189 | P18: =SUM(P15:P17) -> 564
B19: Totaux | F19: =F11+F13+F18 -> 843 | J19: (1) | K19: =K11+K18 -> 290 | P19: =P11+P13+P18 -> 1133
F20: =IF(F19>F21,"! Nombre total d'emplois sous plafond > à la notification de l'Etat","") ->  | P20: Plafond global des emplois voté par le CA ** | Q20: (2)
B21: Rappel du plafond des emplois fixé par l'Etat | F21: 843 | J21: (3)
B22: Note sur les modalités de renseignement du tableau
B23: Ce tableau doit être annexé au budget de l'établissement et, en cas de modification, aux budgets rectificatifs. Les chiffres qu'il contient doivent être exprimés en équivalents temps plein travaillés (ETPT). Le guide de décompte des emplois élaboré par la DAF et la DGESIP précise les régles de décompte des emplois en ETPT en fonction des catégories de personnel.
B24: Seul est soumis au vote du conseil d'administration le plafond global des emplois (case annotée (2))
B25: Le nombre total d'emplois sous plafond Etat (case annotée (1)) ne peut être supérieur au plafond des emplois Etat qui a été notifié à l'établissement et rappelé en case (3)
B26: * : cf. article R719-54 du code de l'éducation : "plafond d'emplois fixé par l'État relatif aux emplois financés par l'État" ** : cf. article R719-54 du code de l'éducation : "plafond d'autorisation de l'ensemble des emplois rémunérés par l'établissement"

Sheet 2-tab_aut_budg_Fondation
B1: Tableau 2 - Université de Bretagne Sud (0561718N) : Fondation
B2: ="Autorisations budgétaires - Budget consolidé "&Maquette!B4&" "&Maquette!B5&" "&Maquette!B3 -> Autorisations budgétaires - Budget consolidé initial 2024
B5: POUR VOTE DE L'ORGANE DÉLIBÉRANT
B8: Dépenses | N8: Recettes
C9: Exécution N-1: BR2/2023 | E9: Budget initial (a) | G9: Nouveau BR | I9: Somme des BR (yc nouveau BR) (b) | K9: TOTAL : dernier budget modifié (c) = (a) + (b) | N9: Exécution N-1: BR1/2021 | O9: Budget initial (d) | P9: Nouveau BR | Q9: Somme des BR (yc nouveau BR) (e) | R9: TOTAL : dernier budget modifié (f) = (d) + (e)
C10: AE | D10: CP | E10: AE | F10: CP | G10: AE | H10: CP | I10: AE | J10: CP | K10: AE | L10: CP | N10: Montants | O10: Montants | P10: Montants | Q10: Montants | R10: Montants
B11: Personnel | C11: 172729.12 | D11: 172729.12 | E11: 262676 | F11: 262676 | K11: =E11+I11 -> 262676 | L11: =F11+J11 -> 262676 | N11: =SUM(N12:N16) -> 328904.68 | O11: =SUM(O12:O16) -> 399000 | P11: =SUM(P12:P16) -> 0 | Q11: 0 | R11: =O11+Q11 -> 399000 | S11: Recettes globalisées
B12: dont contributions employeur au CAS Pension | C12: 0 | D12: 0 | K12: =E12+I12 -> 0 | L12: =F12+J12 -> 0 | N12: 0 | R12: 0 | S12: Subvention pour charges de service public
C13: 0 | D13: 0 | K13: 0 | L13: 0 | N13: -20520.32 | R13: 0 | S13: Autres financements de l'Etat
C14: 0 | D14: 0 | K14: 0 | L14: 0 | N14: 0 | R14: 0 | S14: Fiscalité affectée
B15: Fonctionnement et intervention | C15: 172634.34 | D15: 172634.34 | E15: 238000 | F15: 233000 | K15: 238000 | L15: 233000 | N15: 10067 | R15: 0 | S15: Autres financements publics
C16: 0 | D16: 0 | K16: 0 | L16: 0 | N16: 339358 | O16: 399000 | R16: 399000 | S16: Recettes propres
C17: 0 | D17: 0 | K17: 0 | L17: 0
C18: 0 | D18: 0 | K18: 0 | L18: 0 | N18: =SUM(N19:N21) -> 0 | O18: =SUM(O19:O21) -> 0 | P18: 0 | Q18: 0 | R18: =O18+Q18 -> 0 | S18: Recettes fléchées **
C19: 0 | D19: 0 | K19: 0 | L19: 0 | R19: 0 | S19: Financements de l'Etat fléchés
B20: Investissement | C20: 8454 | D20: 9001 | E20: 19000 | F20: 14000 | K20: 19000 | L20: 14000 | R20: 0 | S20: Autres financements publics fléchés
K21: 0 | L21: 0 | R21: 0 | S21: Recettes propres fléchées
K22: 0 | L22: 0
B23: Enveloppes* destinées à des contrats de recherche | G23: =G24+G25+G26 -> 0 | H23: 0 | I23: 0 | J23: 0 | K23: 0 | L23: 0
B24: Personnel | K24: =E24+I24 -> 0 | L24: =F24+J24 -> 0
B25: Fonctionnement | K25: 0 | L25: 0
B26: Investissement | K26: 0 | L26: 0
B28: TOTAL DES DÉPENSES | C28: =C20+C15+C11+C23 -> 353817.46 | D28: =D20+D15+D11+D23 -> 354364.46 | E28: =E20+E15+E11+E23 -> 519676 | F28: =F20+F15+F11+F23 -> 509676 | G28: 0 | H28: 0 | I28: 0 | J28: 0 | K28: 519676 | L28: 509676 | N28: =N11+N18 -> 328904.68 | O28: 399000 | P28: =P11+P18 -> 0 | Q28: =Q11+Q18 -> 0 | R28: =R11+R18 -> 399000 | S28: TOTAL DES RECETTES
B30: Solde budgétaire (excédent) | D30: =IF(N28-D28>=0,N28-D28,0) -> 0 | F30: =IF(O28-F28>=0,O28-F28,0) -> 0 | H30: =IF(P28-H28>=0,P28-H28,0) -> 0 | J30: =IF(Q28-J28>=0,Q28-J28,0) -> 0 | L30: =IF(R28-L28>=0,R28-L28,0) -> 0 | N30: =IF(D28-N28>0,D28-N28,0) -> 25459.78 | O30: =IF(F28-O28>0,F28-O28,0) -> 110676 | P30: =IF(H28-P28>0,H28-P28,0) -> 0 | Q30: =IF(J28-Q28>0,J28-Q28,0) -> 0 | R30: =IF(L28-R28>0,L28-R28,0) -> 110676 | S30: Solde budgétaire (déficit)
B32: * Chaque enveloppe peut être détaillée en fonction des besoins des organismes. | E32: =IF('3-tab_destination_origine_Fonda'!C31="","","! Incohérence total Personnel AE avec Tab3 ETAB") ->  | F32: =IF('3-tab_destination_origine_Fonda'!D31="","","! Incohérence total Personnel CP avec Tab3 ETAB") ->  | H32: =IF(L24="",IF(ROUND(D12,-1)<>ROUND('6-tab CR_TF_Fondation'!B10,-1),"! Incohérence pensions civ. N-1 Tab6 ETAB",""),"") ->  | I32: =IF('7-tab Plan_tréso_Fondation'!P30="","","! Incohérence total Personnel CP avec Tab7") ->  | K32: =IF(ROUND(K28,-1)=ROUND(#REF!+'2-tab_aut_budg_AGR'!K28,-1),"","! Pb agrégat dépenses AE") ->  | L32: =IF(AND(CONTROLES_TAB3_3_ETAB="",CONTROLES_TAB3_4_ETAB=""),"","! Incohérence solde budgétaire Tab3 ETAB") ->  | N32: =IF('3-tab_destination_origine_Fonda'!C53="","","! Incohérence Subv charges serv public avec Tab3 ETAB") ->  | O32: =IF('3-tab_destination_origine_Fonda'!D53="","","! Incohérence Autres financ. Etat avec Tab3 ETAB") ->  | P32: =IF('7-tab Plan_tréso_Fondation'!P10="","","! Incohérence Subv service public Tab7") ->  | Q32: =IF('7-tab Plan_tréso_Fondation'!P16="","","! Incohérence Financ Etat fléchés Tab7") ->  | R32: =IF(ROUND(R19,-1)<>ROUND(#REF!,-1),"! Incohérence Financ. Etat fléchés avec Tab8 ETAB","") -> 
B33: ** Montant issu du tableau "Opérations sur recettes fléchées" (tableau 8) | E33: =IF('3-tab_destination_origine_Fonda'!E31="","","! Incohérence total Fonct AE avec Tab3 ETAB") ->  | F33: =IF('3-tab_destination_origine_Fonda'!F31="","","! Incohérence total Fonct CP avec Tab3 ETAB") ->  | H33: =IF(L24="",IF(ROUND(F12,-1)<>ROUND('6-tab CR_TF_Fondation'!C10,-1),"! Incohérence pensions civ. BI Tab6 ETAB",""),"") ->  | I33: =IF('7-tab Plan_tréso_Fondation'!P31="","","! Incohérence total Fonct CP avec Tab 7") ->  | K33: =IF(ROUND(L28,-1)=ROUND(#REF!+'2-tab_aut_budg_AGR'!L28,-1),"","! Pb agrégat dépenses CP") ->  | L33: =IF(COUNTA(CONTROLES_TAB4)-COUNTIF(CONTROLES_TAB4_1,"")-COUNTIF(CONTROLES_TAB4_2,"")=0,"","! Incohérence solde budgétaire avec tab4") ->  | N33: =IF('3-tab_destination_origine_Fonda'!E53="","","! Incohérence Fiscalité affectée avec Tab3 ETAB") ->  | O33: =IF('3-tab_destination_origine_Fonda'!F531="","","! Incohérence Autres financements publics avec Tab3 ETAB") ->  | P33: =IF('7-tab Plan_tréso_Fondation'!P11="","","! Incohérence Autres financ Etat Tab7") ->  | Q33: =IF('7-tab Plan_tréso_Fondation'!P17="","","! Incohérence Autres financ fléchés Tab7") ->  | R33: =IF(ROUND(R20,-1)<>ROUND(#REF!,-1),"! Incohérence Autres financ. publics fléchés avec Tab8 ETAB","") -> 
E34: =IF('3-tab_destination_origine_Fonda'!G31="","","! Incohérence total Invest AE avec Tab3 ETAB") ->  | F34: =IF('3-tab_destination_origine_Fonda'!H31="","","! Incohérence total Invest CP avec Tab3 ETAB") ->  | H34: =IF(L24="",IF(ROUND(H12,-1)<>ROUND('6-tab CR_TF_Fondation'!D10,-1),"! Incohérence pensions civ. BR Tab6 ETAB",""),"") ->  | I34: =IF('7-tab Plan_tréso_Fondation'!P33="","","! Incohérence total Invest. CP avec Tab 7") ->  | K34: =IF(ROUND(R28,-1)=ROUND(#REF!+'2-tab_aut_budg_AGR'!R28,-1),"","! Pb agrégat total recettes") ->  | N34: =IF('3-tab_destination_origine_Fonda'!G53="","","! Incohérence Recettes propres avec Tab3 ETAB") ->  | O34: =IF('3-tab_destination_origine_Fonda'!H53="","","! Incohérence Financements Etat fléchés avec Tab3 ETAB") ->  | P34: =IF('7-tab Plan_tréso_Fondation'!P12="","","! Incohérence Fiscalité affectée Tab7") ->  | Q34: =IF('7-tab Plan_tréso_Fondation'!P18="","","! Incohérence Recettes propres fléchées Tab7") ->  | R34: =IF(ROUND(R21,-1)<>ROUND(#REF!,-1),"! Incohérence Recettes propres fléchées avec Tab8 ETAB","") -> 
E35: ="Exécution N-1 : Différence charges de personnel entre tableau 2 et tableau 6 est de : "&'6-tab CR_TF_Fondation'!B9-ROUND('2-tab_aut_budg_Fondation'!D11+'2-tab_aut_budg_Fondation'!D24,-1) -> Exécution N-1 : Différence charges de personnel entre tableau 2 et tableau 6 est de : -1780 | H35: =IF(L24="",IF(ROUND(J12,-1)<>ROUND('6-tab CR_TF_Fondation'!E10,-1),"! Incohérence pensions civ. total BR Tab6 ETAB",""),"") ->  | N35: =IF('3-tab_destination_origine_Fonda'!I53="","","! Incohérence Autres financ. fléchés avec Tab3 ETAB") ->  | O35: =IF('3-tab_destination_origine_Fonda'!J53="","","! Incohérence Recettes propres fléchées avec Tab3 ETAB") ->  | P35: =IF('7-tab Plan_tréso_Fondation'!P13="","","! Incohérence Autres financ publ Tab7") -> 
E36: ="BI : Différence charges de personnel entre tableau 2 et tableau 6 est de : "&'6-tab CR_TF_Fondation'!C9-ROUND('2-tab_aut_budg_Fondation'!F11+'2-tab_aut_budg_Fondation'!F24,-1) -> BI : Différence charges de personnel entre tableau 2 et tableau 6 est de : -2809 | P36: =IF('7-tab Plan_tréso_Fondation'!P14="","","! Incohérence Recettes propres Tab7") -> 
E37: ="Budget BI+BR : Différence charges de personnel entre tableau 2 et tableau 6 est de : "&'6-tab CR_TF_Fondation'!F9-ROUND('2-tab_aut_budg_Fondation'!L11+'2-tab_aut_budg_Fondation'!L24,-1) -> Budget BI+BR : Différence charges de personnel entre tableau 2 et tableau 6 est de : -2809

Sheet 2-tab_aut_budg_AGR (hidden)
B1: Tableau 2 - Université de Bretagne Sud (0561718N) : Etablissement principal + Fondation
B2: ="Autorisations budgétaires - Budget agrégé "&Maquette!B4&" "&Maquette!B5&" "&Maquette!B3 -> Autorisations budgétaires - Budget agrégé initial 2024
B5: POUR VOTE DE L'ORGANE DÉLIBÉRANT
B8: Dépenses | N8: Recettes
C9: Exécution N-1 | E9: Budget initial (a) | G9: Nouveau BR | I9: Somme des BR (yc nouveau BR) (b) | K9: TOTAL : dernier budget modifié (c) = (a) + (b) | N9: Exécution N-1 | O9: Budget initial (d) | P9: Nouveau BR | Q9: Somme des BR (yc nouveau BR) (e) | R9: TOTAL : dernier budget modifié (f) = (d) + (e)
C10: AE | D10: CP | E10: AE | F10: CP | G10: AE | H10: CP | I10: AE | J10: CP | K10: AE | L10: CP | N10: Montants | O10: Montants | P10: Montants | Q10: Montants | R10: Montants
B11: Personnel | K11: =E11+I11 -> 0 | L11: =F11+J11 -> 0 | N11: =SUM(N12:N16) -> 0 | O11: =SUM(O12:O16) -> 0 | P11: =SUM(P12:P16) -> 0 | Q11: 0 | R11: =O11+Q11 -> 0 | S11: Recettes globalisées
B12: dont contributions employeur au CAS Pension | K12: =E12+I12 -> 0 | L12: 0 | R12: =O12+Q12 -> 0 | S12: Subvention pour charges de service public
K13: 0 | L13: 0 | R13: 0 | S13: Autres financements de l'Etat
K14: 0 | L14: 0 | R14: 0 | S14: Fiscalité affectée
B15: Fonctionnement et intervention | K15: 0 | L15: 0 | R15: 0 | S15: Autres financements publics
K16: 0 | L16: 0 | R16: 0 | S16: Recettes propres
K17: 0 | L17: 0
K18: 0 | L18: 0 | N18: =SUM(N19:N21) -> 0 | O18: =SUM(O19:O21) -> 0 | P18: 0 | Q18: 0 | R18: 0 | S18: Recettes fléchées **
K19: 0 | L19: 0 | R19: 0 | S19: Financements de l'Etat fléchés
B20: Investissement | K20: 0 | L20: 0 | R20: 0 | S20: Autres financements publics fléchés
K21: 0 | L21: 0 | R21: 0 | S21: Recettes propres fléchées
K22: 0 | L22: 0
B23: Enveloppes* destinées à des contrats de recherche | C23: =C24+C25+C26 -> 0 | D23: =D24+D25+D26 -> 0 | E23: =E24+E25+E26 -> 0 | F23: =F24+F25+F26 -> 0 | G23: 0 | H23: 0 | I23: 0 | J23: 0 | K23: 0 | L23: 0
B24: Personnel | K24: 0 | L24: 0
B25: Fonctionnement | K25: 0 | L25: 0
B26: Investissement | K26: 0 | L26: 0
B28: TOTAL DES DÉPENSES | C28: =C20+C15+C11+C23 -> 0 | D28: =D20+D15+D11+D23 -> 0 | E28: =E20+E15+E11+E23 -> 0 | F28: =F20+F15+F11+F23 -> 0 | G28: 0 | H28: 0 | I28: 0 | J28: 0 | K28: 0 | L28: 0 | N28: =N11+N18 -> 0 | O28: 0 | P28: =P11+P18 -> 0 | Q28: =Q11+Q18 -> 0 | R28: =R11+R18 -> 0 | S28: TOTAL DES RECETTES
B30: Solde budgétaire (excédent) | D30: =IF(N28-D28>=0,N28-D28,0) -> 0 | F30: =IF(O28-F28>=0,O28-F28,0) -> 0 | H30: =IF(P28-H28>=0,P28-H28,0) -> 0 | J30: =IF(Q28-J28>=0,Q28-J28,0) -> 0 | L30: =IF(R28-L28>=0,R28-L28,0) -> 0 | N30: =IF(D28-N28>0,D28-N28,0) -> 0 | O30: =IF(F28-O28>0,F28-O28,0) -> 0 | P30: =IF(H28-P28>0,H28-P28,0) -> 0 | Q30: =IF(J28-Q28>0,J28-Q28,0) -> 0 | R30: =IF(L28-R28>0,L28-R28,0) -> 0 | S30: Solde budgétaire (déficit)
B32: * Chaque enveloppe peut être détaillée en fonction des besoins des organismes. | E32: =IF('3-tab_destination_origine_AGR'!C31="","","! Incohérence total Personnel AE avec Tab3 AGR") ->  | F32: =IF('3-tab_destination_origine_AGR'!D31="","","! Incohérence total Personnel CP avec Tab3 AGR") ->  | H32: =IF(L24="",IF(ROUND(D12,-1)<>ROUND('6-tab CR_TF_AGR'!B10,-1),"! Incohérence pensions civ. N-1 Tab6 AGR",""),"") ->  | K32: =IF(ROUND(K28,-1)=ROUND(#REF!+#REF!,-1),"","! Pb agrégat dépenses AE") ->  | L32: =IF(AND(CONTROLES_TAB3_3_AGR="",CONTROLES_TAB3_4_AGR=""),"","! Incohérence solde budgétaire Tab3 AGR") ->  | N32: =IF('3-tab_destination_origine_AGR'!C53="","","! Incohérence Subv charges serv public avec Tab3 AGR") ->  | O32: =IF('3-tab_destination_origine_AGR'!D53="","","! Incohérence Autres financ. Etat avec Tab3 AGR") ->  | R32: =IF(ROUND(R19,-1)<>ROUND('8-tab recettes_fléchées_AGR'!D13,-1),"! Incohérence Financ. Etat fléchés avec Tab8 AGR","") -> 
B33: ** Montant issu du tableau "Opérations sur recettes fléchées" (tableau 8) | E33: =IF('3-tab_destination_origine_AGR'!E31="","","! Incohérence total Fonct AE avec Tab3 AGR") ->  | F33: =IF('3-tab_destination_origine_AGR'!F31="","","! Incohérence total Fonct CP avec Tab3 AGR") ->  | H33: =IF(L24="",IF(ROUND(F12,-1)<>ROUND('6-tab CR_TF_AGR'!C10,-1),"! Incohérence pensions civ. BI Tab6 AGR",""),"") ->  | K33: =IF(ROUND(L28,-1)=ROUND(#REF!+#REF!,-1),"","! Pb agrégat dépenses CP") ->  | N33: =IF('3-tab_destination_origine_AGR'!E53="","","! Incohérence Fiscalité affectée avec Tab3 AGR") ->  | O33: =IF('3-tab_destination_origine_AGR'!F531="","","! Incohérence Autres financements publics avec Tab3 AGR") ->  | R33: =IF(ROUND(R20,-1)<>ROUND('8-tab recettes_fléchées_AGR'!D14,-1),"! Incohérence Autres financ. publics fléchés avec Tab8 AGR","") -> 
E34: =IF('3-tab_destination_origine_AGR'!G31="","","! Incohérence total Invest AE avec Tab3 AGR") ->  | F34: =IF('3-tab_destination_origine_AGR'!H31="","","! Incohérence total Invest CP avec Tab3 AGR") ->  | H34: =IF(L24="",IF(ROUND(H12,-1)<>ROUND('6-tab CR_TF_AGR'!D10,-1),"! Incohérence pensions civ. BR Tab6 AGR",""),"") ->  | K34: =IF(ROUND(R28,-1)=ROUND(#REF!+#REF!,-1),"","! Pb agrégat total recettes") ->  | N34: =IF('3-tab_destination_origine_AGR'!G53="","","! Incohérence Recettes propres avec Tab3 AGR") ->  | O34: =IF('3-tab_destination_origine_AGR'!H53="","","! Incohérence Financements Etat fléchés avec Tab3 AGR") ->  | R34: =IF(ROUND(R21,-1)<>ROUND('8-tab recettes_fléchées_AGR'!D15,-1),"! Incohérence Recettes propres fléchées avec Tab8 AGR","") -> 
E35: ="Exécution N-1 : Différence charges de personnel entre tableau 2 et tableau 6 est de : "&'6-tab CR_TF_AGR'!B9-ROUND('2-tab_aut_budg_AGR'!D11+'2-tab_aut_budg_AGR'!D24,-1) ->  | H35: =IF(L24="",IF(ROUND(J12,-1)<>ROUND('6-tab CR_TF_AGR'!E10,-1),"! Incohérence pensions civ. total BR Tab6 AGR",""),"") ->  | N35: =IF('3-tab_destination_origine_AGR'!I53="","","! Incohérence Autres financ. fléchés avec Tab3 AGR") ->  | O35: =IF('3-tab_destination_origine_AGR'!J53="","","! Incohérence Recettes propres fléchées avec Tab3 AGR") -> 
E36: ="BI : Différence charges de personnel entre tableau 2 et tableau 6 est de : "&'6-tab CR_TF_AGR'!C9-ROUND('2-tab_aut_budg_AGR'!F11+'2-tab_aut_budg_AGR'!F24,-1) -> 
E37: ="Budget BI+BR : Différence charges de personnel entre tableau 2 et tableau 6 est de : "&'6-tab CR_TF_AGR'!F9-ROUND('2-tab_aut_budg_AGR'!L11+'2-tab_aut_budg_AGR'!L24,-1) -> 

Sheet 3-tab_destination_origine_Fonda
B1: Tableau 3 - Université de Bretagne Sud (0561718N) : Fondation
B2: ="Dépenses par destination et recettes par origine - Budget consolidé "&Maquette!B4&" "&Maquette!B5&" "&Maquette!B3 -> Dépenses par destination et recettes par origine - Budget consolidé initial 2024
B4: POUR INFORMATION DE L'ORGANE DÉLIBÉRANT
B5: Tableau des dépenses par destination (obligatoire)
B6: Budget | C6: Dépenses de l’organisme
C7: Personnel | E7: Fonctionnement et intervention | G7: Investissement | I7: Total
C8: AE = CP | E8: AE | F8: CP | G8: AE | H8: CP | I8: AE | J8: CP
B9: Formation initiale et continue (d) = (a) + (b) + (c) | C9: =SUM(C10:C12) -> 36000 | D9: =SUM(D10:D12) -> 36000 | E9: 0 | F9: 0 | G9: 0 | H9: 0 | I9: =C9+E9+G9 -> 36000 | J9: =D9+F9+H9 -> 36000
B10: D101 - Formation initiale et continue de niveau Licence (a) | I10: =C10+E10+G10 -> 0 | J10: =D10+F10+H10 -> 0
B11: D102 - Formation initiale et continue de niveau Master (b) | I11: 0 | J11: 0
B12: D103 - Formation initiale et continue de niveau Doctorat (c) | C12: 36000 | D12: 36000 | I12: 36000 | J12: 36000
B13: D105 - Bibliothèques et documentation | I13: 0 | J13: 0
B14: D106 - Recherche universitaire en sciences de la vie, biotechnologie et santé | I14: 0 | J14: 0
B15: D107 - Recherche universitaire en mathématiques, sciences et techniques de l'information et de la communication, micro et nanotechnologies | C15: 90000 | D15: 90000 | E15: 110000 | F15: 110000 | G15: 8000 | H15: 8000 | I15: 208000 | J15: 208000
B16: D108 - Recherche universitaire en physique, chimie et sciences pour l'ingénieur | C16: 65000 | D16: 65000 | E16: 35000 | F16: 35000 | I16: 100000 | J16: 100000
B17: D109 - Recherche universitaire en physique nucléaire et des hautes énergies | I17: 0 | J17: 0
B18: D110 - Recherche universitaire en sciences de la terre, de l'univers et de l'environnement | I18: 0 | J18: 0
B19: D111 - Recherche universitaire en sciences de l'homme et de la société | I19: 0 | J19: 0
B20: D112 - Recherche universitaire interdisciplinaire et transversale | I20: 0 | J20: 0
B21: D113 - Diffusion des savoirs et musées | I21: 0 | J21: 0
B22: D114 - Immobilier | I22: 0 | J22: 0
B23: D115 - Pilotage et support | C23: 71676 | D23: 71676 | E23: 93000 | F23: 88000 | G23: 11000 | H23: 6000 | I23: 175676 | J23: 165676
B24: Étudiants (h) = (e) + (f) + (g) | C24: =SUM(C25:C27) -> 0 | D24: =SUM(D25:D27) -> 0 | E24: 0 | F24: 0 | G24: 0 | H24: 0 | I24: 0 | J24: 0
B25: D201 - Aides directes aux étudiants (e) | I25: 0 | J25: 0
B26: D202 - Aides indirectes (f) | I26: 0 | J26: 0
B27: D203 - Santé des étudiants et activités associatives, culturelles et sportives (g) | I27: 0 | J27: 0
B28: Total | C28: =SUM(C10:C24) -> 262676 | D28: =SUM(D10:D24) -> 262676 | E28: 238000 | F28: 233000 | G28: 19000 | H28: 14000 | I28: =C28+E28+G28 -> 519676 | J28: =D28+F28+H28 -> 509676
C30: =IF(SUM(C9:C28)<>SUM(D9:D28),"! Dépenses de personnel AE <> CP","") ->  | H30: SOLDE BUDGETAIRE (excédent) | J30: =IF(K50>J28,K50-J28,0) -> 0 | K30: =IF(ROUND(J30,-1)<>ROUND('2-tab_aut_budg_Fondation'!L30,-1),"Incohérence solde budgétaire avec Tab2 ETAB","") ->  | L30: =IF(ROUND(J30,-1)<>ROUND('4-tab_financier_Fondation'!M11,-1),"! Incohérence solde budgétaire avec Tab4","") -> 
C31: =IF(ROUND(C28,-1)<>ROUND('2-tab_aut_budg_Fondation'!K11+'2-tab_aut_budg_Fondation'!K24,-1),"! Incohérence total Personnel AE avec Tab2 ETAB","") ->  | D31: =IF(ROUND(D28,-1)<>ROUND('2-tab_aut_budg_Fondation'!L11+'2-tab_aut_budg_Fondation'!L24,-1),"! Incohérence total Personnel CP avec Tab2 ETAB","") ->  | E31: =IF(ROUND(E28,-1)<>ROUND('2-tab_aut_budg_Fondation'!K15+'2-tab_aut_budg_Fondation'!K25,-1),"! Incohérence total Fonctionnement AE avec Tab2 ETAB","") ->  | F31: =IF(ROUND(F28,-1)<>ROUND('2-tab_aut_budg_Fondation'!L15+'2-tab_aut_budg_Fondation'!L25,-1),"! Incohérence total Fonctionnement CP avec Tab2 ETAB","") ->  | G31: =IF(ROUND(G28,-1)<>ROUND('2-tab_aut_budg_Fondation'!K20+'2-tab_aut_budg_Fondation'!K26,-1),"! Incohérence total Investissement AE avec Tab2 ETAB","") ->  | H31: =IF(ROUND(H28,-1)<>ROUND('2-tab_aut_budg_Fondation'!L20+'2-tab_aut_budg_Fondation'!L26,-1),"! Incohérence total Investissement CP avec Tab2 ETAB","") ->  | I31: =IF(ROUND(I28,-1)<>ROUND('2-tab_aut_budg_Fondation'!K28,-1),"! Incohérence Total dépenses AE avec Tab2 ETAB","") ->  | J31: =IF(ROUND(J28,-1)<>ROUND('2-tab_aut_budg_Fondation'!L28,-1),"! Incohérence Total dépenses CP avec Tab2 ETAB","") -> 
B32: Tableau des recettes par origine (obligatoire)
B34: Budget | C34: Recettes de l'organisme
C35: Recettes globalisées | H35: Recettes fléchées | K35: Total
C36: Subvention pour charges de service public | D36: Autres financements de l'Etat | E36: Fiscalité affectée | F36: Autres financements publics | G36: Recettes propres | H36: Financements de l'Etat fléchés | I36: Autres financements publics fléchés | J36: Recettes propres fléchées
B37: Subvention pour charges de service public | H37: 0 | I37: 0 | J37: 0 | K37: =C37 -> 0
B38: Droits d'inscription | H38: 0 | I38: 0 | J38: 0 | K38: =SUM(G38:J38) -> 0
B39: Formation continue, diplômes propres et VAE | H39: 0 | I39: 0 | J39: 0 | K39: =SUM(G39:J39) -> 0
B40: Taxe d'apprentissage | H40: 0 | I40: 0 | J40: 0 | K40: =SUM(G40:J40) -> 0
B41: Contrats et prestations de recherche hors ANR | H41: 0 | I41: 0 | J41: 0 | K41: =SUM(G41:J41) -> 0
B42: Valorisation | H42: 0 | I42: 0 | J42: 0 | K42: =SUM(G42:J42) -> 0
B43: ANR investissements d'avenir | H43: 0 | I43: 0 | J43: 0 | K43: =SUM(F43,H43:J43) -> 0
B44: ANR hors investissements d'avenir | H44: 0 | I44: 0 | J44: 0 | K44: =SUM(F44,H44:J44) -> 0
B45: Subventions d'exploitation et financement des actifs - Région | H45: 0 | I45: 0 | J45: 0 | K45: =SUM(F45,H45:J45) -> 0
B46: Subventions d'exploitation et financement des actifs - Union Européenne | H46: 0 | I46: 0 | J46: 0 | K46: =SUM(F46,H46:J46) -> 0
B47: Subventions d'exploitation et financement des actifs - Autres | H47: 0 | I47: 0 | J47: 0 | K47: =SUM(D47,F47:J47) -> 0
B48: Fondations - fonds propres, réserves, dons et legs | H48: 0 | I48: 0 | J48: 0 | K48: =SUM(D48,F48:J48) -> 0
B49: Autres recettes | G49: 399000 | H49: 0 | I49: 0 | J49: 0 | K49: =SUM(E49:J49) -> 399000
B50: Total | C50: =C37 -> 0 | D50: =SUM(D47:D48) -> 0 | E50: =E49 -> 0 | F50: =SUM(F43:F49) -> 0 | G50: =SUM(G38:G42,G47:G49) -> 399000 | H50: =SUM(H38:H49) -> 0 | I50: =SUM(I38:I49) -> 0 | J50: 0 | K50: =SUM(K37:K49) -> 399000
B52: La liste des destination est susceptible d'être modifiée par le ministre chargé de l'enseignement supérieur | I52: SOLDE BUDGETAIRE (déficit) | K52: =IF(J28>K50,J28-K50,0) -> 110676 | L52: =IF(ROUND(K52,-1)<>ROUND('2-tab_aut_budg_Fondation'!R30,-1),"! Incohérence solde budgétaire avec Tab2 ETAB","") ->  | M52: =IF(ROUND(K52,-1)<>ROUND('4-tab_financier_Fondation'!G11,-1),"! Incohérence solde budgétaire avec Tab4","") -> 
C53: =IF(ROUND(C50,-1)<>ROUND('2-tab_aut_budg_Fondation'!R12,-1),"! Incohérence total Subv charges serv public avec Tab2 ETAB","") ->  | D53: =IF(ROUND(D50,-1)<>ROUND('2-tab_aut_budg_Fondation'!R13,-1),"! Incohérence total Autres financements Etat avec Tab2 ETAB","") ->  | E53: =IF(ROUND(E50,-1)<>ROUND('2-tab_aut_budg_Fondation'!R14,-1),"! Incohérence total Fiscalité affectée avec Tab2 ETAB","") ->  | F53: =IF(ROUND(F50,-1)<>ROUND('2-tab_aut_budg_Fondation'!R15,-1),"! Incohérence total Autres financements publics avec Tab2 ETAB","") ->  | G53: =IF(ROUND(G50,-1)<>ROUND('2-tab_aut_budg_Fondation'!R16,-1),"! Incohérence total Recettes propres avec Tab2 ETAB","") ->  | H53: =IF(ROUND(H50,-1)<>ROUND('2-tab_aut_budg_Fondation'!R19,-1),"! Incohérence total Financements Etat fléchés avec Tab2 ETAB","") ->  | I53: =IF(ROUND(I50,-1)<>ROUND('2-tab_aut_budg_Fondation'!R20,-1),"! Incohérence total Autres financements fléchés avec Tab2 ETAB","") ->  | J53: =IF(ROUND(J50,-1)<>ROUND('2-tab_aut_budg_Fondation'!R21,-1),"! Incohérence total Recettes propres fléchées avec Tab2 ETAB","") ->  | K53: =IF(ROUND(K50,-1)<>ROUND('2-tab_aut_budg_Fondation'!R28,-1),"! Incohérence total avec Tab2 ETAB","") -> 
H54: =IF(H50<>#REF!,"! Incohérence Financements Etat fléchés avec Tab8 ETAB","") ->  | I54: =IF(ROUND(I50,-1)<>ROUND(#REF!,-1),"! Incohérence Autres financements fléchés avec Tab8 ETAB","") ->  | J54: =IF(ROUND(J50,-1)<>ROUND(#REF!,-1),"! Incohérences Recettes propres fléchées avec Tab8 ETAB ","") -> 

Sheet 3-tab_destination_origine_AGR (hidden)
B1: Tableau 3 - Université de Bretagne Sud (0561718N) : Etablissement principal + Fondation
B2: ="Dépenses par destination et recettes par origine - Budget agrégé "&Maquette!B4&" "&Maquette!B5&" "&Maquette!B3 -> Dépenses par destination et recettes par origine - Budget agrégé initial 2024
B4: POUR INFORMATION DE L'ORGANE DÉLIBÉRANT
B5: Tableau des dépenses par destination (obligatoire)
B6: Budget | C6: Dépenses de l’organisme
C7: Personnel | E7: Fonctionnement et intervention | G7: Investissement | I7: Total
C8: AE = CP | E8: AE | F8: CP | G8: AE | H8: CP | I8: AE | J8: CP
B9: Formation initiale et continue (d) = (a) + (b) + (c) | C9: =SUM(C10:C12) -> 0 | D9: =SUM(D10:D12) -> 0 | E9: 0 | F9: 0 | G9: 0 | H9: 0 | I9: =C9+E9+G9 -> 0 | J9: =D9+F9+H9 -> 0
B10: D101 - Formation initiale et continue de niveau Licence (a) | I10: =C10+E10+G10 -> 0 | J10: 0
B11: D102 - Formation initiale et continue de niveau Master (b) | I11: 0 | J11: 0
B12: D103 - Formation initiale et continue de niveau Doctorat (c) | I12: 0 | J12: 0
B13: D105 - Bibliothèques et documentation | I13: 0 | J13: 0
B14: D106 - Recherche universitaire en sciences de la vie, biotechnologie et santé | I14: 0 | J14: 0
B15: D107 - Recherche universitaire en mathématiques, sciences et techniques de l'information et de la communication, micro et nanotechnologies | I15: 0 | J15: 0
B16: D108 - Recherche universitaire en physique, chimie et sciences pour l'ingénieur | I16: 0 | J16: 0
B17: D109 - Recherche universitaire en physique nucléaire et des hautes énergies | I17: 0 | J17: 0
B18: D110 - Recherche universitaire en sciences de la terre, de l'univers et de l'environnement | I18: 0 | J18: 0
B19: D111 - Recherche universitaire en sciences de l'homme et de la société | I19: 0 | J19: 0
B20: D112 - Recherche universitaire interdisciplinaire et transversale | I20: 0 | J20: 0
B21: D113 - Diffusion des savoirs et musées | I21: 0 | J21: 0
B22: D114 - Immobilier | I22: 0 | J22: 0
B23: D115 - Pilotage et support | I23: 0 | J23: 0
B24: Étudiants (h) = (e) + (f) + (g) | C24: =SUM(C25:C27) -> 0 | D24: =SUM(D25:D27) -> 0 | E24: 0 | F24: 0 | G24: 0 | H24: 0 | I24: 0 | J24: 0
B25: D201 - Aides directes aux étudiants (e) | I25: 0 | J25: 0
B26: D202 - Aides indirectes (f) | I26: 0 | J26: 0
B27: D203 - Santé des étudiants et activités associatives, culturelles et sportives (g) | I27: 0 | J27: 0
B28: Total | C28: =SUM(C10:C24) -> 0 | D28: =SUM(D10:D24) -> 0 | E28: 0 | F28: 0 | G28: 0 | H28: 0 | I28: =C28+E28+G28 -> 0 | J28: =D28+F28+H28 -> 0
C30: =IF(SUM(C9:C28)<>SUM(D9:D28),"! Dépenses de personnel AE <> CP","") ->  | H30: SOLDE BUDGETAIRE (excédent) | J30: =IF(K50>J28,K50-J28,0) -> 0 | K30: =IF(ROUND(J30,-1)<>ROUND('2-tab_aut_budg_AGR'!L30,-1),"Incohérence solde budgétaire avec Tab2 AGR","") -> 
C31: =IF(ROUND(C28,-1)<>ROUND('2-tab_aut_budg_AGR'!K11+'2-tab_aut_budg_AGR'!K24,-1),"! Incohérence total Personnel AE avec Tab2 AGR","") ->  | D31: =IF(ROUND(D28,-1)<>ROUND('2-tab_aut_budg_AGR'!L11+'2-tab_aut_budg_AGR'!L24,-1),"! Incohérence total Personnel CP avec Tab2 AGR","") ->  | E31: =IF(ROUND(E28,-1)<>ROUND('2-tab_aut_budg_AGR'!K15+'2-tab_aut_budg_AGR'!K25,-1),"! Incohérence total Fonctionnement AE avec Tab2 AGR","") ->  | F31: =IF(ROUND(F28,-1)<>ROUND('2-tab_aut_budg_AGR'!L15+'2-tab_aut_budg_AGR'!L25,-1),"! Incohérence total Fonctionnement CP avec Tab2 AGR","") ->  | G31: =IF(ROUND(G28,-1)<>ROUND('2-tab_aut_budg_AGR'!K20+'2-tab_aut_budg_AGR'!K26,-1),"! Incohérence total Investissement AE avec Tab2 AGR","") ->  | H31: =IF(ROUND(H28,-1)<>ROUND('2-tab_aut_budg_AGR'!L20+'2-tab_aut_budg_AGR'!L26,-1),"! Incohérence total Investissement CP avec Tab2 AGR","") ->  | I31: =IF(ROUND(I28,-1)<>ROUND('2-tab_aut_budg_AGR'!K28,-1),"! Incohérence Total dépenses AE avec Tab2 AGR","") ->  | J31: =IF(ROUND(J28,-1)<>ROUND('2-tab_aut_budg_AGR'!L28,-1),"! Incohérence Total dépenses CP avec Tab2 AGR","") -> 
B32: Tableau des recettes par origine (obligatoire)
B34: Budget | C34: Recettes de l'organisme
C35: Recettes globalisées | H35: Recettes fléchées | K35: Total
C36: Subvention pour charges de service public | D36: Autres financements de l'Etat | E36: Fiscalité affectée | F36: Autres financements publics | G36: Recettes propres | H36: Financements de l'Etat fléchés | I36: Autres financements publics fléchés | J36: Recettes propres fléchées
B37: Subvention pour charges de service public | K37: =C37 -> 0
B38: Droits d'inscription | K38: =SUM(G38:J38) -> 0
B39: Formation continue, diplômes propres et VAE | K39: =SUM(G39:J39) -> 0
B40: Taxe d'apprentissage | K40: 0
B41: Contrats et prestations de recherche hors ANR | K41: 0
B42: Valorisation | K42: 0
B43: ANR investissements d'avenir | K43: =SUM(F43,H43:J43) -> 0
B44: ANR hors investissements d'avenir | K44: =SUM(F44,H44:J44) -> 0
B45: Subventions d'exploitation et financement des actifs - Région | K45: 0
B46: Subventions d'exploitation et financement des actifs - Union Européenne | K46: 0
B47: Subventions d'exploitation et financement des actifs - Autres | K47: =SUM(D47,F47:J47) -> 0
B48: Fondations - fonds propres, réserves, dons et legs | K48: =SUM(D48,F48:J48) -> 0
B49: Autres recettes | K49: =SUM(F49:J49) -> 0
B50: Total | C50: =C37 -> 0 | D50: =SUM(D47:D48) -> 0 | E50: =SUM(E47:E48) -> 0 | F50: =SUM(F43:F49) -> 0 | G50: =SUM(G38:G42,G47:G49) -> 0 | H50: =SUM(H38:H49) -> 0 | I50: =SUM(I38:I49) -> 0 | J50: 0 | K50: =SUM(K37:K49) -> 0
B52: La liste des destination est susceptible d'être modifiée par le ministre chargé de l'enseignement supérieur | I52: SOLDE BUDGETAIRE (déficit) | K52: =IF(J28>K50,J28-K50,0) -> 0 | L52: =IF(ROUND(K52,-1)<>ROUND('2-tab_aut_budg_AGR'!R30,-1),"! Incohérence solde budgétaire avec Tab2 AGR","") -> 
C53: =IF(ROUND(C50,-1)<>ROUND('2-tab_aut_budg_AGR'!R12,-1),"! Incohérence total Subv charges serv public avec Tab2 AGR","") ->  | D53: =IF(ROUND(D50,-1)<>ROUND('2-tab_aut_budg_AGR'!R13,-1),"! Incohérence total Autres financements Etat avec Tab2 AGR","") ->  | E53: =IF(ROUND(E50,-1)<>ROUND('2-tab_aut_budg_AGR'!R14,-1),"! Incohérence total Fiscalité affectée avec Tab2 AGR","") ->  | F53: =IF(ROUND(F50,-1)<>ROUND('2-tab_aut_budg_AGR'!R15,-1),"! Incohérence total Autres financements publics avec Tab2 AGR","") ->  | G53: =IF(ROUND(G50,-1)<>ROUND('2-tab_aut_budg_AGR'!R16,-1),"! Incohérence total Recettes propres avec Tab2 AGR","") ->  | H53: =IF(ROUND(H50,-1)<>ROUND('2-tab_aut_budg_AGR'!R19,-1),"! Incohérence total Financements Etat fléchés avec Tab2 AGR","") ->  | I53: =IF(ROUND(I50,-1)<>ROUND('2-tab_aut_budg_AGR'!R20,-1),"! Incohérence total Autres financements fléchés avec Tab2 AGR","") ->  | J53: =IF(ROUND(J50,-1)<>ROUND('2-tab_aut_budg_AGR'!R21,-1),"! Incohérence total Recettes propres fléchées avec Tab2 AGR","") ->  | K53: =IF(ROUND(K50,-1)<>ROUND('2-tab_aut_budg_AGR'!R28,-1),"! Incohérence total avec Tab2 AGR","") -> 
H54: =IF(H50<>#REF!,"! Incohérence Financements Etat fléchés avec Tab8 ETAB","") ->  | I54: =IF(ROUND(I50,-1)<>ROUND('8-tab recettes_fléchées_AGR'!D14,-1),"! Incohérence Autres financements fléchés avec Tab8 AGR","") ->  | J54: =IF(ROUND(J50,-1)<>ROUND('8-tab recettes_fléchées_AGR'!D15,-1),"! Incohérences Recettes propres fléchées avec Tab8 AGR ","") -> 

Sheet 4-tab_financier_Fondation
B1: Tableau 4 - Université de Bretagne Sud (0561718N) : Fondation
B2: ="Équilibre financier - Budget consolidé "&Maquette!B4&" "&Maquette!B5&" "&Maquette!B3 -> Équilibre financier - Budget consolidé initial 2024
B5: POUR VOTE DE L'ORGANE DÉLIBÉRANT
B9: Besoins (utilisation des financements) | I9: Financements (couverture des besoins)
C10: Exécution N-1: BR2/2023 | D10: Budget initial (a) | E10: Nouveau BR | F10: Somme des BR (yc nouveau BR) (b) | G10: TOTAL : dernier budget modifié (c) = (a) + (b) | I10: Exécution N-1: BR2/2023 | J10: Budget initial (d) | K10: Nouveau BR | L10: Somme des BR (yc nouveau BR) (e) | M10: TOTAL : dernier budget modifié (f) = (d) + (e)
B11: Solde budgétaire (déficit) * (D2) | C11: 25460 | D11: ='2-tab_aut_budg_Fondation'!O30 -> 110676 | G11: =IF(SUM(J11,L11)-SUM(D11,F11)<0,-(SUM(J11,L11)-SUM(D11,F11)),0) -> 110676 | M11: =IF(SUM(J11,L11)-SUM(D11,F11)>=0,SUM(J11,L11)-SUM(D11,F11),0) -> 0 | N11: Solde budgétaire (excédent) * (D1) | R11: Opérations ayant un impact sur la trésorerie
B12: dont solde budgétaire budget principal | G12: =D12+F12 -> 0 | M12: =IF(SUM(J12,L12)-SUM(D12,F12)>=0,SUM(J12,L12)-SUM(D12,F12),0) -> 0 | N12: dont solde budgétaire budget principal
B13: dont solde budgétaire budget du SAIC | G13: 0 | M13: 0 | N13: dont solde budgétaire budget du SAIC | P13: Opérations budgétaires
B14: dont solde budgétaire FU | C14: 25460 | D14: =D11 -> 110676 | G14: 110676 | M14: 0 | N14: dont solde budgétaire FU
B15: dont solde budgétaire BAI | G15: 0 | M15: 0 | N15: dont solde budgétaire BAI
B16: dont solde budgétaire SIE | G16: 0 | M16: 0 | N16: dont solde budgétaire SIE
G17: 0 | M17: =J17+L17 -> 0
B18: Remboursements d'emprunts (capital) ; Nouveaux prêts (capital) ; Dépôts et cautionnements (b1) | G18: 0 | M18: 0 | N18: Nouveaux emprunts (capital) ; Remboursements de prêts (capital) ; Dépôts et cautionnements (b2)
G19: 0 | M19: 0
B20: Opérations au nom et pour le compte de tiers ** (décaissements de l’exercice) (c1) | C20: 0 | D20: 0 | G20: 0 | I20: 0 | J20: 0 | M20: 0 | N20: Opérations au nom et pour le compte de tiers ** (encaissements de l’exercice) (c2) | P20: Opérations non budgétaires | Q20: =J20-D20 -> 0
G21: 0 | M21: 0
B22: Autres décaissements sur comptes de tiers (non budgétaires) (e1) | D22: 0 | G22: 0 | J22: 0 | M22: 0 | N22: Autres encaissements sur comptes de tiers (non budgétaires) (e2)
G23: 0 | M23: 0
B24: Sous-total des opérations ayant un impact négatif sur la trésorerie de l'organisme (1= D2+b1+c1+e1) | C24: =C11+C18+C20+C22 -> 25460 | D24: =D11+D18+D20+D22 -> 110676 | E24: =E11+E18+E20+E22 -> 0 | F24: =F11+F18+F20+F22 -> 0 | G24: =G11+G18+G20+G22 -> 110676 | H24: et | I24: =I11+I18+I20+I22 -> 0 | J24: =J11+J18+J20+J22 -> 0 | K24: =K11+K18+K20+K22 -> 0 | L24: =L11+L18+L20+L22 -> 0 | M24: =M11+M18+M20+M22 -> 0 | N24: Sous-total des opérations ayant un impact positif sur la trésorerie de l'organisme (2=D1+b2+c2+e2) | P24: La variation de trésorerie : - se détermine par différence entre (1) et (2), - se décompose en (a) et (d), - s'explique par D, (b), (c), (e).
B25: Variation de trésorerie (I) | C25: =IF(I24-C24>0,I24-C24,) -> 0 | D25: =IF(J24-D24>0,J24-D24,) -> 0 | E25: =IF(K24-E24>0,K24-E24,) -> 0 | F25: =IF(L24-F24>0,L24-F24,) -> 0 | G25: =IF(M24-G24>0,M24-G24,) -> 0 | H25: ou | I25: =IF(C24-I24>0,C24-I24,0) -> 25460 | J25: =IF(D24-J24>0,D24-J24,0) -> 110676 | K25: =IF(E24-K24>0,E24-K24,0) -> 0 | L25: =IF(F24-L24>0,F24-L24,0) -> 0 | M25: =IF(G24-M24>0,G24-M24,0) -> 110676 | N25: Variation de trésorerie (II)
G26: =D26+F26 -> 0 | M26: =J26+L26 -> 0 | R26: Décomposition de la variation de trésorerie
B27: dont Abondement de la trésorerie fléchée *** (a1) | G27: 0 | H27: ou | J27: 0 | M27: 0 | N27: dont Prélèvement sur la trésorerie fléchée *** (a2)
G28: 0 | M28: 0
B29: dont Abondement sur la trésorerie non fléchée (d1) | C29: =C25 -> 0 | G29: 0 | H29: ou | I29: =I25 -> 25460 | J29: =J25-J27 -> 110676 | M29: 110676 | N29: dont Prélèvement sur la trésorerie non fléchée (d2) | P29: = différence entre variation de trésorerie (I ou II) et (a)
G30: 0 | M30: 0
B31: TOTAL DES BESOINS (1 + I) | C31: =C25+C24 -> 25460 | D31: =D25+D24 -> 110676 | E31: 0 | F31: =F25+F24 -> 0 | G31: =G25+G24 -> 110676 | H31: et | I31: =I25+I24 -> 25460 | J31: =J25+J24 -> 110676 | K31: 0 | L31: 0 | M31: 110676 | N31: TOTAL DES FINANCEMENTS (2 + II)
B33: * solde budgétaire à détailler pour chaque composante du budget de l'établissement | C33: =IF(ROUND(C11,-1)<>ROUND('2-tab_aut_budg_Fondation'!N30,-1),"! Incohérence solde budgétaire N-1 avec Tab2 ETAB","") ->  | D33: =IF(ROUND(D11,-1)<>ROUND('2-tab_aut_budg_Fondation'!O30,-1),"! Incohérence solde budgétaire BI avec Tab2 ETAB","") ->  | E33: =IF(ROUND(E11,-1)<>ROUND('2-tab_aut_budg_Fondation'!P30,-1),"! Incohérence solde budgétaire BR avec Tab2 ETAB","") ->  | F33: =IF(ROUND(F11,-1)<>ROUND('2-tab_aut_budg_Fondation'!Q30,-1),"! Incohérence solde budgétaire BR tot avec Tab2 ETAB","") ->  | G33: =IF(ROUND(G11,-1)<>ROUND('2-tab_aut_budg_Fondation'!R30,-1),"! Incohérence solde budgétaire Total avec Tab2 ETAB","") ->  | I33: =IF(ROUND(I11,-1)<>ROUND('2-tab_aut_budg_Fondation'!D30,-1),"! Incohérence solde budgétaire N-1 avec Tab2 ETAB","") ->  | J33: =IF(ROUND(J11,-1)<>ROUND('2-tab_aut_budg_Fondation'!F30,-1),"! Incohérence solde budgétaire BI avec Tab2 ETAB","") ->  | K33: =IF(ROUND(K11,-1)<>ROUND('2-tab_aut_budg_Fondation'!H30,-1),"! Incohérence solde budgétaire BR avec Tab2 ETAB","") ->  | L33: =IF(ROUND(L11,-1)<>ROUND('2-tab_aut_budg_Fondation'!J30,-1),"! Incohérence solde budgétaire BR tot avec Tab2 ETAB","") ->  | M33: =IF(ROUND(M11,-1)<>ROUND('2-tab_aut_budg_Fondation'!L30,-1),"! Incohérence solde budgétaire Total avec Tab2 ETAB","") -> 
B34: Montant issu du tableau "Autorisations budgétaires" (tableau 2) | F34: =IF(ROUND(G11,-1)<>ROUND('3-tab_destination_origine_Fonda'!K52,-1),"! Incohérence solde budgétaire avec Tab3 ETAB","") ->  | G34: =IF(ROUND(G20,-1)<>ROUND('5-tab compte de tiers_Fondation'!E20,-1),"! Incohérence décaissements tiers avec Tab5","") ->  | L34: =IF(ROUND(M11,-1)<>ROUND('3-tab_destination_origine_Fonda'!J30,-1),"! Incohérence solde budgétaire avec Tab3 ETAB","") ->  | M34: =IF(ROUND(M20,-1)<>ROUND('5-tab compte de tiers_Fondation'!F20,-1),"! Incohérence encaissements tiers avec Tab5","") -> 
B35: ** Montants issus du tableau "Opérations pour compte de tiers" (tableau 5) | F35: =IF(ROUND(G18,-1)<>ROUND('7-tab Plan_tréso_Fondation'!O39,-1),"! Incohérence remb emprunts avec Tab7","") ->  | G35: =IF(ROUND(G20+G22,-1)<>ROUND('7-tab Plan_tréso_Fondation'!O43,-1),"! Incohérence décaissements tiers avec Tab7","") ->  | L35: =IF(ROUND(M18,-1)<>ROUND('7-tab Plan_tréso_Fondation'!O19,-1),"! Incohérence recettes emprunts avec Tab7","") ->  | M35: =IF(ROUND(M20+M22,-1)<>ROUND('7-tab Plan_tréso_Fondation'!O23,-1),"! Incohérence encaissements tiers avec Tab7","") -> 
B36: *** Montant issu du tableau "Opérations sur recettes fléchées" (tableau 8) | C36: =IF('6-tab CR_TF_Fondation'!H48<=0,IF(ROUND('6-tab CR_TF_Fondation'!H48,-1)<>-ROUND(I25,-1),"! Incohérence var trésorerie N-1 Tab6 ETAB",""),IF(ROUND('6-tab CR_TF_Fondation'!H48,-1)<>ROUND(C25,-1),"! Incohérence var N-1 trésorerie Tab6 ETAB","")) ->  | E36: =IF('6-tab CR_TF_Fondation'!J48<=0,IF(ROUND('6-tab CR_TF_Fondation'!J48,-1)<>-ROUND(K25,-1),"! Incohérence var trésorerie BR Tab6 ETAB",""),IF(ROUND('6-tab CR_TF_Fondation'!J48,-1)<>ROUND(E25,-1),"! Incohérence var trésorerie BR Tab6 ETAB","")) ->  | F36: =IF('6-tab CR_TF_Fondation'!K48<=0,IF(ROUND('6-tab CR_TF_Fondation'!K48,-1)<>-ROUND(L25,-1),"! Incohérence var trésorerie BR tot Tab6 ETAB",""),IF(ROUND('6-tab CR_TF_Fondation'!K48,-1)<>ROUND(F25,-1),"! Incohérence var trésorerie BR tot Tab6 ETAB","")) ->  | G36: =IF('6-tab CR_TF_Fondation'!L48<=0,IF(ROUND('6-tab CR_TF_Fondation'!L48,-1)<>-ROUND(M25,-1),"! Incohérence var trésorerie Total Tab6 ETAB",""),IF(ROUND('6-tab CR_TF_Fondation'!L48,-1)<>ROUND(G25,-1),"! Incohérence var trésorerie Total Tab6 ETAB","")) ->  | M36: =IF('7-tab Plan_tréso_Fondation'!O48<=0,IF(-ROUND('7-tab Plan_tréso_Fondation'!O48,-1)<>ROUND('4-tab_financier_Fondation'!M25,-1),"! Incohérence variation de trésorerie Tab7",""),IF(ROUND('7-tab Plan_tréso_Fondation'!O48,-1)<>ROUND('4-tab_financier_Fondation'!G25,-1),"! Incohérence variation trésorerie Tab7","")) -> 
G37: =IF(#REF!>0,IF(ROUND(G27,-1)<>ROUND(#REF!,-1),"! Incohérence abond. trésorerie fléchée avec Tab8 ETAB",""),"") ->  | M37: =IF(#REF!<=0,IF(ROUND(M27,-1)<>-ROUND(#REF!,-1),"! Incohérence prélèv. trésorerie fléchée avec Tab8 ETAB",""),"") -> 
B38: SAIC : service d'activités industrielles et commerciales
B39: FU : fondation universitaire
B40: BAI : budget annexe immobilier
B41: SIE : service inter-établissements

Sheet 5-tab compte de tiers_Fondation
B1: Tableau 5 - Université de Bretagne Sud (0561718N) :Fondation
B2: ="Opérations pour le compte de tiers - Budget consolidé "&Maquette!B4&" "&Maquette!B5&" "&Maquette!B3 -> Opérations pour le compte de tiers - Budget consolidé initial 2024
B5: POUR INFORMATION DE L'ORGANE DÉLIBÉRANT
B9: Opérations ou regroupement d'opérations de même nature | C9: Comptes | D9: Libellé | E9: Prévisions de décaissements | F9: Prévisions d'encaissements
B10: Opération 1 | C10: C 46711 | D10: Bourse Mobilité Internationale
C11: C 4…
B12: Opération 2 | C12: C 44571 et C 44551 | D12: TVA
C13: C 4...
B14: Opération 3 | C14: C 4731 | D14: Projet Flower (Interreg)
C15: C 4...
B16: Opération 4 | C16: C 4731 | D16: Projet Indigo (Interreg)
C17: C 4...
B18: Opération 5 | C18: C 467611 | D18: Projet Cyberus
C19: C 4...
B20: TOTAL | E20: =SUM(E10:E19) -> 0 | F20: =SUM(F10:F19) -> 0
E21: (c1) | F21: (c2)
D22: (c1) et (c2) étant repris au tableau "Équilibre financier" (tableau 4)
B23: N.B. : Dans l'hypothèse d'un écart entre les crédits et les débits d'un même compte, l'opération concernée devra faire l'objet d'une explication spécifique.
E25: =IF(ROUND(E20,-1)<>ROUND('4-tab_financier_Fondation'!G20,-1),"! Incohérence total décaissements tiers avec Tab4","") ->  | F25: =IF(ROUND(F20,-1)<>ROUND('4-tab_financier_Fondation'!M20,-1),"! Incohérence total encaissements tiers avec Tab4","") -> 

Sheet 6-tab CR_TF_Fondation
A1: Tableau 6 - Université de Bretagne Sud (0561718N) :Fondation
A2: ="Situation patrimoniale - Budget consolidé "&Maquette!B4&" "&Maquette!B5&" "&Maquette!B3 -> Situation patrimoniale - Budget consolidé initial 2024
A4: POUR VOTE DE L'ORGANE DÉLIBÉRANT
A6: Compte de résultat prévisionnel
A8: CHARGES | B8: Exécution N-1: BR2/2023 | C8: Budget initial (a) | D8: Nouveau BR | E8: Somme des BR (yc nouveau BR) (b) | F8: TOTAL : dernier budget modifié (c) = (a) + (b) | G8: PRODUITS | H8: Exécution N-1: BR2/2022 | I8: Budget initial (d) | J8: Nouveau BR | K8: Somme des BR (yc nouveau BR) (e) | L8: TOTAL : dernier budget modifié (f) = (d) + (e)
A9: Personnel | B9: 170950 | C9: 259871 | F9: =C9+E9 -> 259871 | G9: Subventions de l'Etat | H9: 74498.46 | I9: 66000 | L9: =I9+K9 -> 66000
A10: dont charges de pensions civiles* | F10: =C10+E10 -> 0 | G10: Fiscalité affectée | H10: 0 | L10: =I10+K10 -> 0
A11: Fonctionnement (autre que les charges de personnel) et intervention | B11: 237831 | C11: 250746 | F11: =C11+E11 -> 250746 | G11: Autres subventions | H11: 9000 | L11: 0
G12: Autres produits | H12: 349038 | I12: 404280 | L12: 404280
A13: TOTAL DES CHARGES (1) | B13: =B9+B11 -> 408781 | C13: =C9+C11 -> 510617 | D13: =D9+D11 -> 0 | E13: =E9+E11 -> 0 | F13: =F9+F11 -> 510617 | G13: TOTAL DES PRODUITS (2) | H13: =SUM(H9:H12) -> 432536.46 | I13: =SUM(I9:I12) -> 470280 | J13: 0 | K13: 0 | L13: =SUM(L9:L12) -> 470280
A14: Résultat prévisionnel : bénéfice (3) = (2) - (1) | B14: =IF(H13-B13>0,H13-B13,0) -> 23755.46 | C14: =IF(I13-C13>0,I13-C13,0) -> 0 | F14: =IF(L13-F13>0,L13-F13,0) -> 0 | G14: Résultat prévisionnel : perte (4) = (1) - (2) | H14: =IF(B13-H13>0,B13-H13,0) -> 0 | I14: =IF(C13-I13>0,C13-I13,0) -> 40337 | J14: =IF(D13-J13>0,D13-J13,0) -> 0 | K14: =IF(E13-K13>0,E13-K13,0) -> 0 | L14: =IF(F13-L13>0,F13-L13,0) -> 40337
A15: TOTAL EQUILIBRE du compte de résultat prévisionnel (1) + (3) = (2) + (4) | B15: =B13+B14 -> 432536.46 | C15: =C13+C14 -> 510617 | D15: =D13+D14 -> 0 | E15: =E13+E14 -> 0 | F15: =F13+F14 -> 510617 | G15: TOTAL EQUILIBRE du compte de résultat prévisionnel (1) + (3) = (2) + (4) | H15: =H13+H14 -> 432536.46 | I15: =I13+I14 -> 510617 | J15: =J13+J14 -> 0 | K15: 0 | L15: =L13+L14 -> 510617
A16: * Il s'agit des sous catégories de comptes présentant les contributions employeur au CAS Pensions. | D16: ="Nouveau BR : Différence charges de personnel entre tableau 2 et tableau 6 est de : "&(ROUND(D9,0)-ROUND('2-tab_aut_budg_Fondation'!H11+'2-tab_aut_budg_Fondation'!H24,0)) -> Nouveau BR : Différence charges de personnel entre tableau 2 et tableau 6 est de : 0 | E16: ="Somme des BR : Différence charges de personnel entre tableau 2 et tableau 6 est de : "&(ROUND(E9,0)-ROUND('2-tab_aut_budg_Fondation'!J11+'2-tab_aut_budg_Fondation'!J24,0)) -> Somme des BR : Différence charges de personnel entre tableau 2 et tableau 6 est de : 0 | F16: ="Budget BI+BR : Différence charges de personnel entre tableau 2 et tableau 6 est de : "&(ROUND(F9,0)-ROUND('2-tab_aut_budg_Fondation'!L11+'2-tab_aut_budg_Fondation'!L24,0)) -> Budget BI+BR : Différence charges de personnel entre tableau 2 et tableau 6 est de : -2805
B17: =IF('2-tab_aut_budg_Fondation'!L24="",IF(ROUND(B10,-1)<>ROUND('2-tab_aut_budg_Fondation'!D12,-1),"! Incohérence charges PC Tab2 ETAB",""),"") ->  | C17: =IF('2-tab_aut_budg_Fondation'!L24="",IF(ROUND(C10,-1)<>ROUND('2-tab_aut_budg_Fondation'!F12,-1),"! Incohérence charges PC Tab2 ETAB",""),"") ->  | D17: =IF('2-tab_aut_budg_Fondation'!L24="",IF(ROUND(D10,-1)<>ROUND('2-tab_aut_budg_Fondation'!H12,-1),"! Incohérence charges PC Tab2 ETAB",""),"") ->  | E17: =IF('2-tab_aut_budg_Fondation'!L24="",IF(ROUND(E10,-1)<>ROUND('2-tab_aut_budg_Fondation'!J12,-1),"! Incohérence charges PC Tab2 ETAB",""),"") ->  | F17: =IF('2-tab_aut_budg_Fondation'!L24="",IF(ROUND(F10,-1)<>ROUND('2-tab_aut_budg_Fondation'!L12,-1),"! Incohérence charges PCl Tab2 ETAB",""),"") -> 
A19: Calcul de la capacité d'autofinancement (CAF) | B19: =IF(ROUND(F28,-1)=ROUND('6-tab CR_TF_AGR'!F28+'6-tab CR_TF_SIE'!F28,-1),"","! Pb agrégat CAF/IAF") -> 
B21: Exécution N-1: BR2/2023 | C21: Budget initial (g) | D21: Nouveau BR | E21: Somme des BR (yc nouveau BR) (h) | F21: TOTAL : dernier budget modifié (i) = (g) + (h)
A22: Résultat prévisionnel de l'exercice (bénéfice (3) ou perte (-4) | B22: =IF(B14>0,B14,-H14) -> 23755.46 | C22: =IF(C14>0,C14,-I14) -> -40337 | D22: =IF(D14>0,D14,-J14) -> 0 | E22: =IF(E14>0,E14,-K14) -> 0 | F22: =IF(F14>0,F14,-L14) -> -40337
A23: + dotations aux amortissements, dépréciations et provisions | B23: 63888 | C23: 14971 | F23: =C23+E23 -> 14971
A24: - reprises sur amortissements, dépréciations et provisions | B24: 0 | C24: -5280 | F24: =C24+E24 -> -5280
A25: + valeur nette comptable des éléments d'actifs cédés | B25: 0 | F25: =C25+E25 -> 0
A26: - produits de cession d'éléments d'actifs | B26: 0 | F26: =C26+E26 -> 0
A27: - quote-part des subventions d’investissement virée au résultat de l’exercice | B27: -25680 | F27: =C27+E27 -> 0
A28: = CAF ou IAF* | B28: =SUM(B22:B27) -> 61963.46 | C28: =SUM(C22:C27) -> -30646 | D28: 0 | E28: 0 | F28: =SUM(F22:F27) -> -30646
A29: * capacité d'autofinancement ou insuffisance d'autofinancement
A32: État prévisionnel de l'évolution de la situation patrimoniale en droits constatés | D32: =IF(ROUND(F41,-1)=ROUND('6-tab CR_TF_AGR'!F41+'6-tab CR_TF_SIE'!F41,-1),"","! Pb agrégat apport FDR") ->  | G32: =IF(ROUND(L41,-1)=ROUND('6-tab CR_TF_AGR'!L41+'6-tab CR_TF_SIE'!L41,-1),"","! Pb agrégat prélèvement FDR") -> 
A34: EMPLOIS | B34: Exécution N-1: BR2/2023 | C34: Budget initial (j) | D34: Nouveau BR | E34: Somme des BR (yc nouveau BR) (k) | F34: TOTAL : dernier budget modifié (l) = (j) + (k) | G34: RESSOURCES | H34: Exécution N-1: BR2/2022 | I34: Budget initial (m) | J34: Nouveau BR | K34: Somme des BR (yc nouveau BR) (n) | L34: TOTAL : dernier budget modifié (o) = (m) + (n)
A35: Insuffisance d'autofinancement* | B35: =IF(B28<0,-B28,0) -> 0 | C35: =IF(C28<0,-C28,0) -> 30646 | D35: =IF(D28<0,-D28,0) -> 0 | E35: =IF(E28<0,-E28,0) -> 0 | F35: =IF(F28<0,-F28,0) -> 30646 | G35: Capacité d'autofinancement* | H35: =IF(B28>0,B28,0) -> 61963.46 | I35: =IF(C28>0,C28,0) -> 0 | J35: =IF(D28>0,D28,0) -> 0 | K35: =IF(E28>0,E28,0) -> 0 | L35: =IF(F28>0,F28,0) -> 0
A36: Investissements | B36: 9001 | C36: 14000 | F36: =C36+E36 -> 14000 | G36: Financement de l'actif par l'État | H36: 0 | I36: 0 | L36: =I36+K36 -> 0
G37: Financement de l'actif par des tiers autres que l'Etat | H37: 0 | I37: 0 | L37: =I37+K37 -> 0
G38: Autres ressources | H38: -24000 | L38: 0
A39: Remboursement des dettes financières | F39: =C39+E39 -> 0 | G39: Augmentation des dettes financières | H39: 0 | I39: 0 | L39: 0
A40: TOTAL DES EMPLOIS (5) | B40: =SUM(B35:B39) -> 9001 | C40: 44646 | D40: 0 | E40: =SUM(E35:E39) -> 0 | F40: =SUM(F35:F39) -> 44646 | G40: TOTAL DES RESSOURCES (6) | H40: =SUM(H35:H39) -> 37963.46 | I40: 0 | J40: 0 | K40: =SUM(K35:K39) -> 0 | L40: =SUM(L35:L39) -> 0
A41: APPORT au FONDS DE ROULEMENT (7) = (6)-(5) | B41: =IF(H40-B40>0,H40-B40,0) -> 28962.46 | C41: =IF(I40-C40>0,I40-C40,0) -> 0 | D41: =IF(J40-D40>0,J40-D40,0) -> 0 | E41: =IF(K40-E40>0,K40-E40,0) -> 0 | F41: =IF(L40-F40>0,L40-F40,0) -> 0 | G41: PRELEVEMENT sur FONDS DE ROULEMENT (8) = (5)-(6) | H41: =IF(B40-H40>0,B40-H40,0) -> 0 | I41: =IF(C40-I40>0,C40-I40,0) -> 44646 | J41: =IF(D40-J40>0,D40-J40,0) -> 0 | K41: =IF(E40-K40>0,E40-K40,0) -> 0 | L41: =IF(F40-L40>0,F40-L40,0) -> 44646
A43: POUR INFORMATION DE L'ORGANE DÉLIBÉRANT
H45: Exécution N-1: BR2/2023 | I45: Budget initial (q) | J45: Nouveau BR | K45: Somme des BR (yc nouveau BR) (r) | L45: TOTAL : dernier budget modifié Variation (s) = (q) + (r) Niveau = (p) + (s)
A46: VARIATION DU FONDS DE ROULEMENT : APPORT (7) ou PRELEVEMENT (8) | H46: =IF(B41>0,B41,-H41) -> 28962.46 | I46: =IF(C41>0,C41,-I41) -> -44646 | J46: =IF(D41>0,D41,-J41) -> 0 | K46: =IF(E41>0,E41,-K41) -> 0 | L46: =I46+K46 -> -44646 | N46: =IF(L46<0,IF(ROUND(L46,-1)=-ROUND('2-tab_aut_budg_Fondation'!R30,-1),"! Impossibilité Var fonds de roulement = Solde budg Tab2 ETAB",""),IF(L46>0,IF(ROUND(L46,-1)=ROUND('2-tab_aut_budg_Fondation'!L30,-1),"! Impossibilité Var fonds de roulement = Solde budg Tab2 ETAB",""),"")) -> 
A47: Variation du BESOIN en FONDS DE ROULEMENT | H47: =H46-H48 -> 54422.46 | I47: =I46-I48 -> 66030 | L47: =I47+K47 -> 66030
A48: Variation de la TRESORERIE : ABONDEMENT (I) ou PRELEVEMENT (II) * | H48: -25460 | I48: ='7-tab Plan_tréso_Fondation'!O48 -> -110676 | L48: -110676
A49: Niveau du FONDS DE ROULEMENT | H49: 355947.62 | I49: =H49+I46 -> 311301.62 | L49: =H49+L46 -> 311301.62
A50: Niveau du BESOIN EN FONDS DE ROULEMENT | H50: 104345.08 | I50: =I49-I51 -> 170375.08 | L50: =H50+L47 -> 170375.08
A51: Niveau de la TRESORERIE | H51: 251602.54 | I51: =H51+I48 -> 140926.54 | L51: 140926.54
A53: * : montant issu du tableau "équilibre financier" | H53: =IF(H48<=0,IF(ROUND(H48,-1)<>-ROUND('4-tab_financier_Fondation'!I25,-1),"! Incohérence var trésorerie N-1 Tab4",""),IF(ROUND(H48,-1)<>ROUND('4-tab_financier_Fondation'!C25,-1),"! Incohérence var trésorerie N-1 Tab4","")) ->  | J53: =IF(J48<=0,IF(ROUND(J48,-1)<>-ROUND('4-tab_financier_Fondation'!K25,-1),"! Incohérence var trésorerie BR Tab4",""),IF(ROUND(J48,-1)<>ROUND('4-tab_financier_Fondation'!E25,-1),"! Incohérence var trésorerie BR Tab4","")) ->  | K53: =IF(K48<=0,IF(ROUND(K48,-1)<>-ROUND('4-tab_financier_Fondation'!L25,-1),"! Incohérence var trésorerie BR totTab4",""),IF(ROUND(K48,-1)<>ROUND('4-tab_financier_Fondation'!F25,-1),"! Incohérence var trésorerie BR tot Tab4","")) ->  | L53: =IF(L48<=0,IF(ROUND(L48,-1)<>-ROUND('4-tab_financier_Fondation'!M25,-1),"! Incohérence trésorerie Total Tab4",""),IF(ROUND(L48,-1)<>ROUND('4-tab_financier_Fondation'!G25,-1),"! Incohérence variation trésorerie Total Tab4","")) -> 
L54: =IF(ROUND(L51,-1)<>ROUND('7-tab Plan_tréso_Fondation'!N49,-1),"! Incohérence de niveau de trésorerie final avec Tab7","") -> 

Sheet 6-tab CR_TF_AGR (hidden)
A1: Tableau 6 - Université de Bretagne Sud (0561718N) : Etablissement principal + Fondation
A2: ="Situation patrimoniale - Budget agrégé "&Maquette!B4&" "&Maquette!B5&" "&Maquette!B3 -> Situation patrimoniale - Budget agrégé initial 2024
A4: POUR VOTE DE L'ORGANE DÉLIBÉRANT
A6: Compte de résultat prévisionnel | B6: =IF(ROUND(F13,-1)=ROUND(#REF!+#REF!,-1),"","! Pb agrégat charges") ->  | G6: =IF(ROUND(L13,-1)=ROUND(#REF!+#REF!,-1),"","! Pb agrégat produits") -> 
A8: CHARGES | B8: Exécution N-1 | C8: Budget initial (a) | D8: Nouveau BR | E8: Somme des BR (yc nouveau BR) (b) | F8: TOTAL : dernier budget modifié (c) = (a) + (b) | G8: PRODUITS | H8: Exécution N-1 | I8: Budget initial (d) | J8: Nouveau BR | K8: Somme des BR (yc nouveau BR) (e) | L8: TOTAL : dernier budget modifié (f) = (d) + (e)
A9: Personnel | B9: =#REF!+#REF! ->  | C9: =#REF!+#REF! ->  | D9: =#REF!+#REF! ->  | E9: =#REF!+#REF! ->  | F9: =C9+E9 ->  | G9: Subventions de l'Etat | H9: =#REF!+#REF! ->  | I9: =#REF!+#REF! ->  | J9: =#REF!+#REF! ->  | K9: =#REF!+#REF! ->  | L9: =I9+K9 -> 
A10: dont charges de pensions civiles* | B10: =#REF!+#REF! ->  | C10: =#REF!+#REF! ->  | D10: =#REF!+#REF! ->  | E10: =#REF!+#REF! ->  | F10: =C10+E10 ->  | G10: Fiscalité affectée | H10: =#REF!+#REF! ->  | I10: =#REF!+#REF! ->  | J10: =#REF!+#REF! ->  | K10: =#REF!+#REF! ->  | L10: =I10+K10 -> 
A11: Fonctionnement (autre que les charges de personnel) et intervention | B11: =#REF!+#REF! ->  | C11: =#REF!+#REF! ->  | D11: =#REF!+#REF! ->  | E11: =#REF!+#REF! ->  | F11: =C11+E11 ->  | G11: Autres subventions | H11: =#REF!+#REF! ->  | I11: =#REF!+#REF! ->  | J11: =#REF!+#REF! ->  | K11: =#REF!+#REF! -> 
B12: =#REF!+#REF! ->  | C12: =#REF!+#REF! ->  | D12: =#REF!+#REF! ->  | E12: =#REF!+#REF! ->  | G12: Autres produits | H12: =#REF!+#REF! ->  | I12: =#REF!+#REF! ->  | J12: =#REF!+#REF! ->  | K12: =#REF!+#REF! -> 
A13: TOTAL DES CHARGES (1) | B13: =B9+B11 ->  | C13: =C9+C11 ->  | D13: =D9+D11 ->  | F13: =F9+F11 ->  | G13: TOTAL DES PRODUITS (2) | H13: =SUM(H9:H12) ->  | I13: =SUM(I9:I12) ->  | L13: =SUM(L9:L12) -> 
A14: Résultat prévisionnel : bénéfice (3) = (2) - (1) | B14: =IF(H13-B13>0,H13-B13,0) ->  | C14: =IF(I13-C13>0,I13-C13,0) ->  | D14: =IF(J13-D13>0,J13-D13,0) ->  | E14: =IF(K13-E13>0,K13-E13,0) ->  | F14: =IF(L13-F13>0,L13-F13,0) ->  | G14: Résultat prévisionnel : perte (4) = (1) - (2) | H14: =IF(B13-H13>0,B13-H13,0) ->  | I14: =IF(C13-I13>0,C13-I13,0) ->  | J14: =IF(D13-J13>0,D13-J13,0) ->  | K14: =IF(E13-K13>0,E13-K13,0) ->  | L14: =IF(F13-L13>0,F13-L13,0) -> 
A15: TOTAL EQUILIBRE du compte de résultat prévisionnel (1) + (3) = (2) + (4) | B15: =B13+B14 ->  | C15: =C13+C14 ->  | D15: =D13+D14 ->  | F15: =F13+F14 ->  | G15: TOTAL EQUILIBRE du compte de résultat prévisionnel (1) + (3) = (2) + (4) | H15: =H13+H14 ->  | I15: =I13+I14 ->  | L15: =L13+L14 -> 
A16: * Il s'agit des sous catégories de comptes présentant les contributions employeur au CAS Pensions. | B16: ="Exécution N-1 : Différence charges de personnel entre tableau 2 et tableau 6 est de : "&(ROUND(B9,0)-ROUND('2-tab_aut_budg_AGR'!D11+'2-tab_aut_budg_AGR'!D24,0)) ->  | C16: ="BI : Différence charges de personnel entre tableau 2 et tableau 6 est de : "&(ROUND(C9,0)-ROUND('2-tab_aut_budg_AGR'!F11+'2-tab_aut_budg_AGR'!F24,0)) ->  | D16: ="Nouveau BR : Différence charges de personnel entre tableau 2 et tableau 6 est de : "&(ROUND(D9,0)-ROUND('2-tab_aut_budg_AGR'!H11+'2-tab_aut_budg_AGR'!H24,0)) ->  | E16: ="Somme des BR : Différence charges de personnel entre tableau 2 et tableau 6 est de : "&(ROUND(E9,0)-ROUND('2-tab_aut_budg_AGR'!J11+'2-tab_aut_budg_AGR'!J24,0)) ->  | F16: ="Budget BI+BR : Différence charges de personnel entre tableau 2 et tableau 6 est de : "&(ROUND(F9,0)-ROUND('2-tab_aut_budg_AGR'!L11+'2-tab_aut_budg_AGR'!L24,0)) -> 
B17: =IF('2-tab_aut_budg_AGR'!L24="",IF(ROUND(B10,-1)<>ROUND('2-tab_aut_budg_AGR'!D12,-1),"! Incohérence charges PC Tab2 AGR",""),"") ->  | C17: =IF('2-tab_aut_budg_AGR'!L24="",IF(ROUND(C10,-1)<>ROUND('2-tab_aut_budg_AGR'!F12,-1),"! Incohérence charges PC Tab2 AGR",""),"") ->  | D17: =IF('2-tab_aut_budg_AGR'!L24="",IF(ROUND(D10,-1)<>ROUND('2-tab_aut_budg_AGR'!H12,-1),"! Incohérence charges PC Tab2 AGR",""),"") ->  | E17: =IF('2-tab_aut_budg_AGR'!L24="",IF(ROUND(E10,-1)<>ROUND('2-tab_aut_budg_AGR'!J12,-1),"! Incohérence charges PC Tab2 AGR",""),"") ->  | F17: =IF('2-tab_aut_budg_AGR'!L24="",IF(ROUND(F10,-1)<>ROUND('2-tab_aut_budg_AGR'!L12,-1),"! Incohérence charges PCl Tab2 AGR",""),"") -> 
A19: Calcul de la capacité d'autofinancement (CAF) | B19: =IF(ROUND(F28,-1)=ROUND(#REF!+#REF!,-1),"","! Pb agrégat CAF/IAF") -> 
B21: Exécution N-1 | C21: Budget initial (g) | D21: Nouveau BR | E21: Somme des BR (yc nouveau BR) (h) | F21: TOTAL : dernier budget modifié (i) = (g) + (h)
A22: Résultat prévisionnel de l'exercice (bénéfice (3) ou perte (-4) | B22: =IF(B14>0,B14,-H14) ->  | C22: =IF(C14>0,C14,-I14) ->  | D22: =IF(D14>0,D14,-J14) ->  | E22: =IF(E14>0,E14,-K14) ->  | F22: =IF(F14>0,F14,-L14) -> 
A23: + dotations aux amortissements, dépréciations et provisions | B23: =#REF!+#REF! ->  | C23: =#REF!+#REF! ->  | D23: =#REF!+#REF! ->  | E23: =#REF!+#REF! ->  | F23: =C23+E23 -> 
A24: - reprises sur amortissements, dépréciations et provisions | B24: =#REF!+#REF! ->  | C24: =#REF!+#REF! ->  | D24: =#REF!+#REF! ->  | E24: =#REF!+#REF! ->  | F24: =C24+E24 -> 
A25: + valeur nette comptable des éléments d'actifs cédés | B25: =#REF!+#REF! ->  | C25: =#REF!+#REF! ->  | D25: =#REF!+#REF! ->  | E25: =#REF!+#REF! ->  | F25: =C25+E25 -> 
A26: - produits de cession d'éléments d'actifs | B26: =#REF!+#REF! ->  | C26: =#REF!+#REF! ->  | D26: =#REF!+#REF! ->  | E26: =#REF!+#REF! ->  | F26: =C26+E26 -> 
A27: - quote-part des subventions d’investissement virée au résultat de l’exercice | B27: =#REF!+#REF! ->  | C27: =#REF!+#REF! ->  | D27: =#REF!+#REF! ->  | E27: =#REF!+#REF! ->  | F27: =C27+E27 -> 
A28: = CAF ou IAF* | B28: =SUM(B22:B27) ->  | C28: =SUM(C22:C27) ->  | F28: =SUM(F22:F27) -> 
A29: * capacité d'autofinancement ou insuffisance d'autofinancement
A32: État prévisionnel de l'évolution de la situation patrimoniale en droits constatés | D32: =IF(ROUND(F41,-1)=ROUND(#REF!+#REF!,-1),"","! Pb agrégat apport FDR") ->  | G32: =IF(ROUND(L41,-1)=ROUND(#REF!+#REF!,-1),"","! Pb agrégat prélèvement FDR") -> 
A34: EMPLOIS | B34: Exécution N-1 | C34: Budget initial (j) | D34: Nouveau BR | E34: Somme des BR (yc nouveau BR) (k) | F34: TOTAL : dernier budget modifié (l) = (j) + (k) | G34: RESSOURCES | H34: Exécution N-1 | I34: Budget initial (m) | J34: Nouveau BR | K34: Somme des BR (yc nouveau BR) (n) | L34: TOTAL : dernier budget modifié (o) = (m) + (n)
A35: Insuffisance d'autofinancement* | B35: =IF(B28<0,-B28,0) ->  | C35: =IF(C28<0,-C28,0) ->  | D35: =IF(D28<0,-D28,0) ->  | E35: =IF(E28<0,-E28,0) ->  | F35: =IF(F28<0,-F28,0) ->  | G35: Capacité d'autofinancement* | H35: =IF(B28>0,B28,0) ->  | I35: =IF(C28>0,C28,0) ->  | J35: =IF(D28>0,D28,0) ->  | K35: =IF(E28>0,E28,0) ->  | L35: =IF(F28>0,F28,0) -> 
A36: Investissements | B36: =#REF!+#REF! ->  | C36: =#REF!+#REF! ->  | D36: =#REF!+#REF! ->  | E36: =#REF!+#REF! ->  | F36: =C36+E36 ->  | G36: Financement de l'actif par l'État | H36: =#REF!+#REF! ->  | I36: =#REF!+#REF! ->  | J36: =#REF!+#REF! ->  | K36: =#REF!+#REF! ->  | L36: =I36+K36 -> 
B37: =#REF!+#REF! ->  | C37: =#REF!+#REF! ->  | D37: =#REF!+#REF! ->  | E37: =#REF!+#REF! ->  | G37: Financement de l'actif par des tiers autres que l'Etat | H37: =#REF!+#REF! ->  | I37: =#REF!+#REF! ->  | J37: =#REF!+#REF! ->  | K37: =#REF!+#REF! ->  | L37: =I37+K37 -> 
B38: =#REF!+#REF! ->  | C38: =#REF!+#REF! ->  | D38: =#REF!+#REF! ->  | E38: =#REF!+#REF! ->  | G38: Autres ressources | H38: =#REF!+#REF! ->  | I38: =#REF!+#REF! ->  | J38: =#REF!+#REF! ->  | K38: =#REF!+#REF! -> 
A39: Remboursement des dettes financières | B39: =#REF!+#REF! ->  | C39: =#REF!+#REF! ->  | D39: =#REF!+#REF! ->  | E39: =#REF!+#REF! ->  | F39: =C39+E39 ->  | G39: Augmentation des dettes financières | H39: =#REF!+#REF! ->  | I39: =#REF!+#REF! ->  | J39: =#REF!+#REF! ->  | K39: =#REF!+#REF! -> 
A40: TOTAL DES EMPLOIS (5) | B40: =SUM(B35:B39) ->  | E40: =SUM(E35:E39) ->  | F40: =SUM(F35:F39) ->  | G40: TOTAL DES RESSOURCES (6) | H40: =SUM(H35:H39) ->  | L40: =SUM(L35:L39) -> 
A41: APPORT au FONDS DE ROULEMENT (7) = (6)-(5) | B41: =IF(H40-B40>0,H40-B40,0) ->  | C41: =IF(I40-C40>0,I40-C40,0) ->  | D41: =IF(J40-D40>0,J40-D40,0) ->  | E41: =IF(K40-E40>0,K40-E40,0) ->  | F41: =IF(L40-F40>0,L40-F40,0) ->  | G41: PRELEVEMENT sur FONDS DE ROULEMENT (8) = (5)-(6) | H41: =IF(B40-H40>0,B40-H40,0) ->  | I41: =IF(C40-I40>0,C40-I40,0) ->  | J41: =IF(D40-J40>0,D40-J40,0) ->  | K41: =IF(E40-K40>0,E40-K40,0) ->  | L41: =IF(F40-L40>0,F40-L40,0) -> 
A43: POUR INFORMATION DE L'ORGANE DÉLIBÉRANT
H45: Exécution N-1 (p) | I45: Budget initial (q) | J45: Nouveau BR | K45: Somme des BR (yc nouveau BR) (r) | L45: TOTAL : dernier budget modifié Variation (s) = (q) + (r) Niveau = (p) + (s)
A46: VARIATION DU FONDS DE ROULEMENT : APPORT (7) ou PRELEVEMENT (8) | H46: =IF(B41>0,B41,-H41) ->  | I46: =IF(C41>0,C41,-I41) ->  | J46: =IF(D41>0,D41,-J41) ->  | K46: =IF(E41>0,E41,-K41) ->  | L46: =I46+K46 ->  | N46: =IF(L46<0,IF(ROUND(L46,-1)=-ROUND('2-tab_aut_budg_AGR'!R30,-1),"! Impossibilité Var fonds de roulement = Solde budg Tab2 AGR",""),IF(L46>0,IF(ROUND(L46,-1)=ROUND('2-tab_aut_budg_AGR'!L30,-1),"! Impossibilité Var fonds de roulement = Solde budg Tab2 AGR",""),"")) -> 
A47: Variation du BESOIN en FONDS DE ROULEMENT | H47: =#REF!+#REF! ->  | I47: =#REF!+#REF! ->  | J47: =#REF!+#REF! ->  | K47: =#REF!+#REF! ->  | L47: =I47+K47 -> 
A48: Variation de la TRESORERIE : ABONDEMENT (I) ou PRELEVEMENT (II) * | H48: =#REF!+#REF! ->  | I48: =#REF!+#REF! ->  | J48: =#REF!+#REF! ->  | K48: =#REF!+#REF! ->  | N48: =IF(ROUND(L48,-1)=ROUND(#REF!+#REF!,-1),"","! Pb agrégat variation trésorerie") -> 
A49: Niveau du FONDS DE ROULEMENT | H49: =#REF!+#REF! ->  | I49: =#REF!+#REF! ->  | J49: =#REF!+#REF! ->  | K49: =#REF!+#REF! ->  | L49: =H49+L46 -> 
A50: Niveau du BESOIN EN FONDS DE ROULEMENT | H50: =#REF!+#REF! ->  | I50: =#REF!+#REF! ->  | J50: =#REF!+#REF! ->  | K50: =#REF!+#REF! ->  | L50: =H50+L47 -> 
A51: Niveau de la TRESORERIE | H51: =#REF!+#REF! ->  | I51: =#REF!+#REF! ->  | J51: =#REF!+#REF! ->  | K51: =#REF!+#REF! ->  | N51: =IF(ROUND(L51,-1)=ROUND(#REF!+#REF!,-1),"","! Pb agrégat niveau trésorerie") -> 
A53: * : montant issu du tableau "équilibre financier"

Sheet 6-tab CR_TF_SIE (hidden)
A1: Tableau 6 - Université de Bretagne Sud (0561718N) : CFA
A2: ="Situation patrimoniale - Budget "&Maquette!B4&" "&Maquette!B5&" "&Maquette!B3 -> Situation patrimoniale - Budget initial 2024
A4: POUR VOTE DE L'ORGANE DÉLIBÉRANT
A6: Compte de résultat prévisionnel
A8: CHARGES | B8: Exécution N-1 | C8: Budget initial (a) | D8: Nouveau BR | E8: Somme des BR (yc nouveau BR) (b) | F8: TOTAL : dernier budget modifié (c) = (a) + (b) | G8: PRODUITS | H8: Exécution N-1 | I8: Budget initial (d) | J8: Nouveau BR | K8: Somme des BR (yc nouveau BR) (e) | L8: TOTAL : dernier budget modifié (f) = (d) + (e)
A9: Personnel | F9: =C9+E9 -> 0 | G9: Subventions de l'Etat | L9: =I9+K9 -> 0
A10: dont charges de pensions civiles* | F10: =C10+E10 -> 0 | G10: Fiscalité affectée | L10: =I10+K10 -> 0
A11: Fonctionnement (autre que les charges de personnel) et intervention | F11: =C11+E11 -> 0 | G11: Autres subventions | L11: 0
G12: Autres produits | L12: 0
A13: TOTAL DES CHARGES (1) | B13: =B9+B11 -> 0 | C13: =C9+C11 -> 0 | D13: =D9+D11 -> 0 | E13: 0 | F13: =F9+F11 -> 0 | G13: TOTAL DES PRODUITS (2) | H13: =SUM(H9:H12) -> 0 | I13: =SUM(I9:I12) -> 0 | J13: 0 | K13: 0 | L13: =SUM(L9:L12) -> 0
A14: Résultat prévisionnel : bénéfice (3) = (2) - (1) | B14: =IF(H13-B13>0,H13-B13,0) -> 0 | C14: =IF(I13-C13>0,I13-C13,0) -> 0 | D14: =IF(J13-D13>0,J13-D13,0) -> 0 | E14: =IF(K13-E13>0,K13-E13,0) -> 0 | F14: =IF(L13-F13>0,L13-F13,0) -> 0 | G14: Résultat prévisionnel : perte (4) = (1) - (2) | H14: =IF(B13-H13>0,B13-H13,0) -> 0 | I14: =IF(C13-I13>0,C13-I13,0) -> 0 | J14: =IF(D13-J13>0,D13-J13,0) -> 0 | K14: =IF(E13-K13>0,E13-K13,0) -> 0 | L14: =IF(F13-L13>0,F13-L13,0) -> 0
A15: TOTAL EQUILIBRE du compte de résultat prévisionnel (1) + (3) = (2) + (4) | B15: =B13+B14 -> 0 | C15: =C13+C14 -> 0 | D15: =D13+D14 -> 0 | E15: 0 | F15: =F13+F14 -> 0 | G15: TOTAL EQUILIBRE du compte de résultat prévisionnel (1) + (3) = (2) + (4) | H15: =H13+H14 -> 0 | I15: =I13+I14 -> 0 | J15: 0 | K15: 0 | L15: =L13+L14 -> 0
A16: * Il s'agit des sous catégories de comptes présentant les contributions employeur au CAS Pensions. | B16: ="Exécution N-1 : Différence charges de personnel entre tableau 2 et tableau 6 est de : "&(ROUND(B9,0)-ROUND(#REF!+#REF!,0)) ->  | C16: ="BI : Différence charges de personnel entre tableau 2 et tableau 6 est de : "&(ROUND(C9,0)-ROUND(#REF!+#REF!,0)) ->  | D16: ="Nouveau BR : Différence charges de personnel entre tableau 2 et tableau 6 est de : "&(ROUND(D9,0)-ROUND(#REF!+#REF!,0)) ->  | E16: ="Somme des BR : Différence charges de personnel entre tableau 2 et tableau 6 est de : "&(ROUND(E9,0)-ROUND(#REF!+#REF!,0)) ->  | F16: ="Budget BI+BR : Différence charges de personnel entre tableau 2 et tableau 6 est de : "&(ROUND(F9,0)-ROUND(#REF!+#REF!,0)) -> 
B17: =IF(#REF!="",IF(ROUND(B10,-1)<>ROUND(#REF!,-1),"! Incohérence charges PC Tab2 SIE",""),"") ->  | C17: =IF(#REF!="",IF(ROUND(C10,-1)<>ROUND(#REF!,-1),"! Incohérence charges PC Tab2 SIE",""),"") ->  | D17: =IF(#REF!="",IF(ROUND(D10,-1)<>ROUND(#REF!,-1),"! Incohérence charges PC Tab2 SIE",""),"") ->  | E17: =IF(#REF!="",IF(ROUND(E10,-1)<>ROUND(#REF!,-1),"! Incohérence charges PC Tab2 SIE",""),"") ->  | F17: =IF(#REF!="",IF(ROUND(F10,-1)<>ROUND(#REF!,-1),"! Incohérence charges PCl Tab2 SIE",""),"") -> 
A19: Calcul de la capacité d'autofinancement (CAF)
B21: Exécution N-1 | C21: Budget initial (g) | D21: Nouveau BR | E21: Somme des BR (yc nouveau BR) (h) | F21: TOTAL : dernier budget modifié (i) = (g) + (h)
A22: Résultat prévisionnel de l'exercice (bénéfice (3) ou perte (-4) | B22: =IF(B14>0,B14,-H14) -> 0 | C22: =IF(C14>0,C14,-I14) -> 0 | D22: =IF(D14>0,D14,-J14) -> 0 | E22: =IF(E14>0,E14,-K14) -> 0 | F22: =IF(F14>0,F14,-L14) -> 0
A23: + dotations aux amortissements, dépréciations et provisions | F23: =C23+E23 -> 0
A24: - reprises sur amortissements, dépréciations et provisions | F24: =C24+E24 -> 0
A25: + valeur nette comptable des éléments d'actifs cédés | F25: =C25+E25 -> 0
A26: - produits de cession d'éléments d'actifs | F26: =C26+E26 -> 0
A27: - quote-part des subventions d’investissement virée au résultat de l’exercice | F27: =C27+E27 -> 0
A28: = CAF ou IAF* | B28: =SUM(B22:B27) -> 0 | C28: =SUM(C22:C27) -> 0 | D28: 0 | E28: 0 | F28: =SUM(F22:F27) -> 0
A29: * capacité d'autofinancement ou insuffisance d'autofinancement
A32: État prévisionnel de l'évolution de la situation patrimoniale en droits constatés
A34: EMPLOIS | B34: Exécution N-1 | C34: Budget initial (j) | D34: Nouveau BR | E34: Somme des BR (yc nouveau BR) (k) | F34: TOTAL : dernier budget modifié (l) = (j) + (k) | G34: RESSOURCES | H34: Exécution N-1 | I34: Budget initial (m) | J34: Nouveau BR | K34: Somme des BR (yc nouveau BR) (n) | L34: TOTAL : dernier budget modifié (o) = (m) + (n)
A35: Insuffisance d'autofinancement* | B35: =IF(B28<0,-B28,0) -> 0 | C35: =IF(C28<0,-C28,0) -> 0 | D35: =IF(D28<0,-D28,0) -> 0 | E35: =IF(E28<0,-E28,0) -> 0 | F35: =IF(F28<0,-F28,0) -> 0 | G35: Capacité d'autofinancement* | H35: =IF(B28>0,B28,0) -> 0 | I35: =IF(C28>0,C28,0) -> 0 | J35: =IF(D28>0,D28,0) -> 0 | K35: =IF(E28>0,E28,0) -> 0 | L35: =IF(F28>0,F28,0) -> 0
A36: Investissements | F36: =C36+E36 -> 0 | G36: Financement de l'actif par l'État | L36: =I36+K36 -> 0
G37: Financement de l'actif par des tiers autres que l'Etat | L37: =I37+K37 -> 0
G38: Autres ressources | L38: 0
A39: Remboursement des dettes financières | F39: =C39+E39 -> 0 | G39: Augmentation des dettes financières | L39: 0
A40: TOTAL DES EMPLOIS (5) | B40: =SUM(B35:B39) -> 0 | C40: 0 | D40: 0 | E40: =SUM(E35:E39) -> 0 | F40: =SUM(F35:F39) -> 0 | G40: TOTAL DES RESSOURCES (6) | H40: =SUM(H35:H39) -> 0 | I40: 0 | J40: 0 | K40: 0 | L40: =SUM(L35:L39) -> 0
A41: APPORT au FONDS DE ROULEMENT (7) = (6)-(5) | B41: =IF(H40-B40>0,H40-B40,0) -> 0 | C41: =IF(I40-C40>0,I40-C40,0) -> 0 | D41: =IF(J40-D40>0,J40-D40,0) -> 0 | E41: =IF(K40-E40>0,K40-E40,0) -> 0 | F41: =IF(L40-F40>0,L40-F40,0) -> 0 | G41: PRELEVEMENT sur FONDS DE ROULEMENT (8) = (5)-(6) | H41: =IF(B40-H40>0,B40-H40,0) -> 0 | I41: =IF(C40-I40>0,C40-I40,0) -> 0 | J41: =IF(D40-J40>0,D40-J40,0) -> 0 | K41: =IF(E40-K40>0,E40-K40,0) -> 0 | L41: =IF(F40-L40>0,F40-L40,0) -> 0
A43: POUR INFORMATION DE L'ORGANE DÉLIBÉRANT
H45: Exécution N-1 (p) | I45: Budget initial (q) | J45: Nouveau BR | K45: Somme des BR (yc nouveau BR) (r) | L45: TOTAL : dernier budget modifié Variation (s) = (q) + (r) Niveau = (p) + (s)
A46: VARIATION DU FONDS DE ROULEMENT : APPORT (7) ou PRELEVEMENT (8) | H46: =IF(B41>0,B41,-H41) -> 0 | I46: =IF(C41>0,C41,-I41) -> 0 | J46: =IF(D41>0,D41,-J41) -> 0 | K46: =IF(E41>0,E41,-K41) -> 0 | L46: =I46+K46 -> 0 | N46: =IF(L46<0,IF(ROUND(L46,-1)=-ROUND(#REF!,-1),"! Impossibilité Var fonds de roulement = Solde budg Tab2 SIE",""),IF(L46>0,IF(ROUND(L46,-1)=ROUND(#REF!,-1),"! Impossibilité Var fonds de roulement = Solde budg Tab2 SIE",""),"")) -> 
A47: Variation du BESOIN en FONDS DE ROULEMENT | L47: =I47+K47 -> 0
A48: Variation de la TRESORERIE : ABONDEMENT (I) ou PRELEVEMENT (II) * | L48: 0
A49: Niveau du FONDS DE ROULEMENT | L49: =H49+L46 -> 0
A50: Niveau du BESOIN EN FONDS DE ROULEMENT | H50: =H49-H51 -> 0 | I50: =I49-I51 -> 0 | J50: 0 | K50: 0 | L50: =H50+L47 -> 0
A51: Niveau de la TRESORERIE | L51: 0
A53: * : montant issu du tableau "équilibre financier"

Sheet 7-tab Plan_tréso_Fondation
B1: Tableau 7- Université de Bretagne Sud (0561718N) : Fondation
B2: ="Plan de trésorerie - Budget consolidé "&Maquette!B4&" "&Maquette!B5&" "&Maquette!B3 -> Plan de trésorerie - Budget consolidé initial 2024
B4: POUR INFORMATION DE L'ORGANE DÉLIBÉRANT
B6: ( K€ ) | C6: janvier | D6: février | E6: mars | F6: avril | G6: mai | H6: juin | I6: juillet | J6: août | K6: septembre | L6: octobre | M6: novembre | N6: décembre | O6: TOTAL Variation de la trésorerie annuelle
B7: (1) SOLDE INITIAL (début de mois) | C7: 251601.85 | D7: =C49 -> 243556.85 | E7: =D49 -> 235511.85 | F7: 227466.85 | G7: 219421.85 | H7: 211376.85 | I7: 196331.85 | J7: 188286.85 | K7: 180241.85 | L7: 172196.85 | M7: 164151.85 | N7: 156106.85 | O7: =SUM(C7:N7) -> 2446252.2
B8: ENCAISSEMENTS
B9: Recettes budgétaires globalisées | C9: =SUM(C10:C14) -> 33250 | D9: =SUM(D10:D14) -> 33250 | E9: 33250 | F9: 33250 | G9: 33250 | H9: 33250 | I9: 33250 | J9: 33250 | K9: 33250 | L9: 33250 | M9: 33250 | N9: 33250 | O9: 399000
B10: Subvention pour charges de service public | O10: =SUM(C10:N10) -> 0 | P10: =IF(ROUND(O10,-1)<>ROUND('2-tab_aut_budg_Fondation'!R12,-1),"! Incohérence subv serv publ. Tab2 ETAB","") -> 
B11: Autres financements de l'Etat | O11: =SUM(C11:N11) -> 0 | P11: =IF(ROUND(O11,-1)<>ROUND('2-tab_aut_budg_Fondation'!R13,-1),"! Incohérence autres financ. Etat Tab2 ETAB","") -> 
B12: Fiscalité affectée | O12: 0 | P12: =IF(ROUND(O12,-1)<>ROUND('2-tab_aut_budg_Fondation'!R14,-1),"! Incohérence fiscalité affectée Tab2 ETAB","") -> 
B13: Autres financements publics | O13: 0 | P13: =IF(ROUND(O13,-1)<>ROUND('2-tab_aut_budg_Fondation'!R15,-1),"! Incohérence autres financ. publics Tab2 ETAB","") -> 
B14: Recettes propres | C14: 33250 | D14: 33250 | E14: 33250 | F14: 33250 | G14: 33250 | H14: 33250 | I14: 33250 | J14: 33250 | K14: 33250 | L14: 33250 | M14: 33250 | N14: 33250 | O14: 399000 | P14: =IF(ROUND(O14,-1)<>ROUND('2-tab_aut_budg_Fondation'!R16,-1),"! Incohérence recettes propres Tab2 ETAB","") -> 
B15: Recettes budgétaires fléchées | C15: =SUM(C16:C18) -> 0 | D15: =SUM(D16:D18) -> 0 | E15: 0 | F15: 0 | G15: 0 | H15: 0 | I15: 0 | J15: 0 | K15: 0 | L15: 0 | M15: 0 | N15: 0 | O15: =SUM(C15:N15) -> 0
B16: Financements de l'Etat fléchés | O16: 0 | P16: =IF(ROUND(O16,-1)<>ROUND('2-tab_aut_budg_Fondation'!R19,-1),"! Incohérence Financ. Etat fléchés Tab2 ETAB","") ->  | Q16: =IF(ROUND(O16,-1)<>ROUND(#REF!,-1),"! Incohérence Financ. Etat fléchés avec Tab8 ETAB","") -> 
B17: Autres financements publics fléchés | O17: 0 | P17: =IF(ROUND(O17,-1)<>ROUND('2-tab_aut_budg_Fondation'!R20,-1),"! Incohérence Autres financ. fléchés Tab2 ETAB","") ->  | Q17: =IF(ROUND(O17,-1)<>ROUND(#REF!,-1),"! Incohérence Autres financ. fléchés avec Tab8 ETAB","") -> 
B18: Recettes propres fléchées | O18: 0 | P18: =IF(ROUND(O18,-1)<>ROUND('2-tab_aut_budg_Fondation'!R21,-1),"! Incohérence recettes propres fléchées Tab2 ETAB","") ->  | Q18: =IF(ROUND(O18,-1)<>ROUND(#REF!,-1),"! Incohérence Recettes propres fléchées avec Tab8 ETAB","") -> 
B19: Opérations non budgétaires | C19: =SUM(C20:C22) -> 0 | D19: =SUM(D20:D22) -> 0 | E19: 0 | F19: 0 | G19: 0 | H19: 0 | I19: 0 | J19: 0 | K19: 0 | L19: 0 | M19: 0 | N19: 0 | O19: 0 | P19: =IF(ROUND(O19,-1)<>ROUND('4-tab_financier_Fondation'!M18,-1),"! Incohérence Emprunts Tab4","") -> 
B20: Emprunts : encaissements en capital | O20: 0
B21: Prêts : encaissements en capital | O21: 0
B22: Dépôts et cautionnements | O22: 0
B23: Opérations gérées en comptes de tiers : | C23: =SUM(C24:C26) -> 0 | D23: =SUM(D24:D26) -> 0 | E23: 0 | F23: 0 | G23: 0 | H23: 0 | I23: 0 | J23: 0 | K23: 0 | L23: 0 | M23: 0 | N23: 0 | O23: 0 | P23: =O23-O43 -> 0
B24: TVA encaissée | O24: 0
B25: Dispositifs d'intervention pour compte de tiers : encaissements | O25: 0
B26: Autres encaissements d'opérations gérées en comptes de tiers | O26: 0
B27: A. TOTAL | C27: =C23+C19+C15+C9 -> 33250 | D27: =D23+D19+D15+D9 -> 33250 | E27: 33250 | F27: 33250 | G27: 33250 | H27: 33250 | I27: 33250 | J27: 33250 | K27: 33250 | L27: 33250 | M27: 33250 | N27: 33250 | O27: 399000
B28: DECAISSEMENTS
B29: Dépenses liées à des recettes globalisées | C29: =SUM(C30:C33) -> 41295 | D29: =SUM(D30:D33) -> 41295 | E29: 41295 | F29: 41295 | G29: 41295 | H29: 48295 | I29: 41295 | J29: 41295 | K29: 41295 | L29: 41295 | M29: 41295 | N29: 48431 | O29: =SUM(C29:N29) -> 509676
B30: Personnel | C30: 21885 | D30: 21885 | E30: 21885 | F30: 21885 | G30: 21885 | H30: 21885 | I30: 21885 | J30: 21885 | K30: 21885 | L30: 21885 | M30: 21885 | N30: 21941 | O30: =SUM(C30:N30) -> 262676 | P30: =IF(ROUND(SUM(O30,O35),-1)<>ROUND('2-tab_aut_budg_Fondation'!L11+'2-tab_aut_budg_Fondation'!L24,-1),"! Incohérence Personnel Tab2 ETAB","") -> 
B31: Fonctionnement | C31: 19410 | D31: 19410 | E31: 19410 | F31: 19410 | G31: 19410 | H31: 19410 | I31: 19410 | J31: 19410 | K31: 19410 | L31: 19410 | M31: 19410 | N31: 19490 | O31: 233000 | P31: =IF(ROUND(SUM(O31:O32,O36:O37),-1)<>ROUND('2-tab_aut_budg_Fondation'!L15+'2-tab_aut_budg_Fondation'!L25,-1),"! Incohérence Fonct et Interv. Tab2 ETAB","") -> 
B32: Intervention | O32: 0
B33: Investissement | C33: 0 | D33: 0 | E33: 0 | F33: 0 | G33: 0 | H33: 7000 | I33: 0 | J33: 0 | K33: 0 | L33: 0 | M33: 0 | N33: 7000 | O33: 14000 | P33: =IF(ROUND(SUM(O33,O38),-1)<>ROUND('2-tab_aut_budg_Fondation'!L20+'2-tab_aut_budg_Fondation'!L26,-1),"! Incohérence Invt Tab2 ETAB","") -> 
B34: Dépenses liées à des recettes fléchées | C34: =SUM(C35:C38) -> 0 | D34: =SUM(D35:D38) -> 0 | E34: 0 | F34: 0 | G34: 0 | H34: 0 | I34: 0 | J34: 0 | K34: 0 | L34: 0 | M34: 0 | N34: 0 | O34: 0
B35: Personnel | O35: 0 | Q35: =IF(ROUND(O35,-1)<>ROUND(#REF!,-1),"! Incohérence dépenses pers. fléchées avec Tab8 ETAB","") -> 
B36: Fonctionnement | O36: 0 | Q36: =IF(ROUND(SUM(O36:O37),-1)<>ROUND(#REF!,-1),"! Incohérence dépenses Fonct. fléchées avec Tab8 ETAB","") -> 
B37: Intervention | O37: 0
B38: Investissement | O38: 0 | Q38: =IF(ROUND(O38,-1)<>ROUND(#REF!,-1),"! Incohérence dépenses invest fléchées avec Tab8 ETAB","") -> 
B39: Opérations non budgétaires | C39: =SUM(C40:C42) -> 0 | D39: =SUM(D40:D42) -> 0 | E39: 0 | F39: 0 | G39: 0 | H39: 0 | I39: 0 | J39: 0 | K39: 0 | L39: 0 | M39: 0 | N39: 0 | O39: 0 | P39: =IF(ROUND(O39,-1)<>ROUND('4-tab_financier_Fondation'!G18,-1),"! Incohérence Emprunts Tab4","") -> 
B40: Emprunts : remboursements en capital | O40: 0
B41: Prêts : décaissements en capital | O41: 0
B42: Dépôts et cautionnements | O42: 0
B43: Opérations gérées en compte de tiers : | C43: =SUM(C44:C46) -> 0 | D43: =SUM(D44:D46) -> 0 | E43: 0 | F43: 0 | G43: 0 | H43: 0 | I43: 0 | J43: 0 | K43: 0 | L43: 0 | M43: 0 | N43: 0 | O43: 0 | P43: =IF(ROUND(O43,-1)<>ROUND('4-tab_financier_Fondation'!G20+'4-tab_financier_Fondation'!G22,-1),"! Incohérence Compte tiers Tab4","") -> 
B44: TVA décaissée | O44: 0
B45: Dispositifs d'intervention pour compte de tiers : décaissements | O45: 0
B46: Autres décaissements d'opérations gérées en comptes de tiers | O46: 0
B47: B. TOTAL | C47: =C43+C39+C34+C29 -> 41295 | D47: =D43+D39+D34+D29 -> 41295 | E47: 41295 | F47: 41295 | G47: 41295 | H47: 48295 | I47: 41295 | J47: 41295 | K47: 41295 | L47: 41295 | M47: 41295 | N47: 48431 | O47: 509676
B48: (2) SOLDE DU MOIS = A - B | C48: =C27-C47 -> -8045 | D48: =D27-D47 -> -8045 | E48: -8045 | F48: -8045 | G48: -8045 | H48: -15045 | I48: -8045 | J48: -8045 | K48: -8045 | L48: -8045 | M48: -8045 | N48: -15181 | O48: =SUM(C48:N48) -> -110676 | P48: =IF(O48<0,IF(-ROUND(O48,-1)<>ROUND('4-tab_financier_Fondation'!M25,-1),"! Incohérence variation trésorerie Tab4",""),IF(ROUND('7-tab Plan_tréso_Fondation'!O48,-1)<>ROUND('4-tab_financier_Fondation'!G25,-1),"! Incohérence variation trésorerie Tab4","")) -> 
B49: SOLDE CUMULE (1) + (2) | C49: =C48+C7 -> 243556.85 | D49: =D48+D7 -> 235511.85 | E49: 227466.85 | F49: 219421.85 | G49: 211376.85 | H49: 196331.85 | I49: 188286.85 | J49: 180241.85 | K49: 172196.85 | L49: 164151.85 | M49: 156106.85 | N49: 140925.85 | P49: =IF(ROUND(N49,-1)<>ROUND('6-tab CR_TF_Fondation'!L51,-1),"! Incohérence niveau trésorerie avec Tab6 ETAB","") -> 
O50: Variation de trésorerie correspondant à celle du tableau d'équilibre financier (I) ou (II)

Sheet 8-tab recettes_fléchées_AGR (hidden)
B1: Tableau 8 - Université de Bretagne Sud (0561718N) : Etablissement principal + Fondation
B2: ="Opérations liées aux recettes fléchées - Budget agrégé "&Maquette!B4&" "&Maquette!B5&" "&Maquette!B3 -> Opérations liées aux recettes fléchées - Budget agrégé initial 2024
B5: POUR INFORMATION DE L'ORGANE DÉLIBÉRANT
C8: Antérieures à N non dénouées | D8: N | E8: N+1 | F8: N+2 | G8: N+3
B9: Position de financement des opérations fléchées en début d'exercice (a)
B11: Recettes fléchées (b) | C11: =SUM(C13:C15) -> 0 | D11: =SUM(D13:D15) -> 0 | E11: 0 | F11: 0 | G11: 0
B13: Financements de l'État fléchés | H13: =IF(ROUND(D13,-1)<>ROUND('2-tab_aut_budg_AGR'!R19,-1),"! Incohérence Financ. Etat fléchés avec Tab2 AGR","") ->  | I13: =IF(ROUND(D13,-1)<>ROUND('3-tab_destination_origine_AGR'!H50,-1),"! Incohérence Financ. Etat fléchés avec Tab3 AGR","") -> 
B14: Autres financements publics fléchés | H14: =IF(ROUND(D14,-1)<>ROUND('2-tab_aut_budg_AGR'!R20,-1),"! Incohérence Autres financ. fléchés avec Tab2 AGR","") ->  | I14: =IF(ROUND(D14,-1)<>ROUND('3-tab_destination_origine_AGR'!I50,-1),"! Incohérence Autres financ. fléchés avec Tab3 AGR","") -> 
B15: Recettes propres fléchées | H15: =IF(ROUND(D15,-1)<>ROUND('2-tab_aut_budg_AGR'!R21,-1),"! Incohérence Recettes propres fléchées avec Tab2 AGR","") ->  | I15: =IF(ROUND(D15,-1)<>ROUND('3-tab_destination_origine_AGR'!J50,-1),"! Incohérence Recettes propres fléchées avec Tab3 AGR","") -> 
B17: Dépenses sur recettes fléchées (c) | C17: =C19+C21+C24 -> 0 | D17: =D19+D21+D24 -> 0 | E17: 0 | F17: 0 | G17: 0
B19: Personnel | C19: =C20 -> 0 | D19: =D20 -> 0 | E19: 0 | F19: 0 | G19: 0
B20: AE=CP
B21: Fonctionnement et intervention | C21: =C23 -> 0 | D21: =D23 -> 0 | E21: 0 | F21: 0 | G21: 0
B22: AE
B23: CP
B24: Investissement | C24: =C26 -> 0 | D24: =D26 -> 0 | E24: 0 | F24: 0 | G24: 0
B25: AE
B26: CP
B28: Solde budgétaire de l'exercice résultant des opérations fléchées (b) - (c) | C28: =C11-C17 -> 0 | D28: =D11-D17 -> 0 | E28: =E11-E17 -> 0 | F28: 0 | G28: 0
D29: (1)
D30: (1) repris au tableau "Équilibre financier" en (a) (tableau 4)

Sheet Annexe Synthèse_Fondation
A1: ANNEXE 5 - Université de Bretagne Sud (0561718N) : Fondation
A2: ="Synthèse budgétaire et comptable - Budget consolidé "&Maquette!B4&" "&Maquette!B5&" "&Maquette!B3 -> Synthèse budgétaire et comptable - Budget consolidé initial 2024
B4: POUR INFORMATION DE L'ORGANE DÉLIBÉRANT
H6: =IF(Maquette!B4="initial","BI "&Maquette!B5,IF(Maquette!B4="rectificatif","BR "&Maquette!B5,"")) -> BI
B7: Stocks initiaux | D7: 1 | F7: Niveau initial de restes à payer | H7: 15199.26
D9: 2 | F9: Niveau initial du fonds de roulement | H9: ='6-tab CR_TF_Fondation'!H49 -> 355947.62
D10: 3 | F10: Niveau initial du besoin en fonds de roulement | H10: =H9-H11+0.06 -> 104345.14
D11: 4 | F11: Niveau initial de la trésorerie | H11: ='6-tab CR_TF_Fondation'!H51 -> 251602.54
E12: 4.a | F12: dont niveau initial de la trésorerie fléchée
E13: 4.b | F13: dont niveau initial de la trésorerie non fléchée | H13: =H11 -> 251602.54
B15: Flux de l'année | D15: 5 | F15: Autorisations d'engagement | H15: ='2-tab_aut_budg_Fondation'!K28 -> 519676
D17: 6 | F17: Résultat patrimonial | H17: =IF('6-tab CR_TF_Fondation'!F14>0,'6-tab CR_TF_Fondation'!F14,-'6-tab CR_TF_Fondation'!L14) -> -40337
D18: 7 | F18: Capacité d'autofinancement (CAF) | H18: ='6-tab CR_TF_Fondation'!F28 -> -30646
D19: 8 | F19: Variation du fonds de roulement | H19: ='6-tab CR_TF_Fondation'!L46 -> -44646
D21: 9 | E21: 9.a | F21: Opérations bilancielles non budgétaires | G21: SENS | H21: =SUM(H22:H24) -> 0
F22: Nouvel emprunt / remboursement de prêt | G22: + / -
F23: Remboursement d'emprunt / prêt accordé | G23: +
F24: Cautionnements et dépôts | G24: - | H24: ='7-tab Plan_tréso_Fondation'!O22-'7-tab Plan_tréso_Fondation'!O42 -> 0
D26: 10 | E26: 9.a | F26: Opérations comptables non retraitées par la CAF, non budgétaires | G26: SENS | H26: =SUM(H27:H30) -> 0
F27: Variation des stocks | G27: + / -
F28: Production immobilisée | G28: +
F29: Charges sur créances irrécouvrables | G29: -
F30: Produits divers de gestion courante | G30: +
D32: 11 | E32: 9.b | F32: Décalages de flux de trésorerie liés aux opérations budgétaires | G32: SENS | H32: =H34-H36 -> 66030
F33: Ecart entre les produits / ressources et les encaissements relatifs à des opérations sur exercices antérieurs | G33: + / -
F34: Ecart entre les produits / ressources et les encaissements relatifs à des opérations de l'exercice en cours | G34: + / - | H34: 66000
F35: Ecart entre les charges / immobilisations et les décaissements relatifs à des opérations sur exercices antérieurs | G35: + / -
F36: Ecart entre les charges / immobilisations et les décaissements relatifs à des opérations de l'exercice en cours | G36: + / - | H36: -30
D38: 12 | F38: Solde budgétaire = 8 - 9 - 10 - 11 | H38: =H19-H26-H32-H21 -> -110676
E39: 12.a | F39: Recettes budgétaires | H39: ='2-tab_aut_budg_Fondation'!R28 -> 399000
E40: 12.b | F40: Crédits de paiement ouverts | H40: ='2-tab_aut_budg_Fondation'!L28 -> 509676
D42: 13 | E42: 9.c | F42: Flux de trésorerie liés aux opérations au nom et pour le compte de tiers | H42: ='4-tab_financier_Fondation'!M20-'4-tab_financier_Fondation'!G20 -> 0
D44: 14 | E44: 9.c | F44: Flux de trésorerie liés aux autres encaissements / décaissements sur comptes de tiers (non budgétaires) | H44: ='4-tab_financier_Fondation'!M22-'4-tab_financier_Fondation'!G22 -> 0
D46: 15 | F46: Variation de la trésorerie = 12 - 13 - 14 | H46: =H38+H42-H44 -> -110676
E47: 15.a | F47: dont variation de la trésorerie fléchée | H47: ='4-tab_financier_Fondation'!G27-'4-tab_financier_Fondation'!M27 -> 0
E48: 15.b | F48: dont variation de la trésorerie non fléchée | H48: ='4-tab_financier_Fondation'!G29-'4-tab_financier_Fondation'!M29 -> -110676
D50: 16 | F50: Variation du besoin en fonds de roulement = 9 + 10 + 11 - 13 + 14 | H50: =H26+H32-H42+H21+H44 -> 66030
D52: 17 | F52: Restes à payer | H52: =H15-H40 -> 10000
B54: Stocks finaux | D54: 18 | F54: Niveau final de restes à payer | H54: =H7+H52 -> 25199.26
D56: 19 | F56: Niveau final du fonds de roulement | H56: =H9+H19 -> 311301.62
D57: 20 | F57: Niveau final du besoin en fonds de roulement | H57: =H56-H58 -> 170375.08
D58: 21 | F58: Niveau final de la trésorerie | H58: =H11+H46 -> 140926.54
E59: 21.a | F59: dont niveau final de la trésorerie fléchée | H59: =H12+H47 -> 0
E60: 21.b | F60: dont niveau final de la trésorerie non fléchée | H60: =H13+H48 -> 140926.54
F62: Comptabilité budgétaire
F63: Comptabilité générale
